Workbook

Sheet INTRODUCTIE

Sheet >>Producten-prijslijst
B2: Ingrediënt | C2: Eenheid | D2: Aankoopprijs
B3: kies uw product | C3: kg | D3: 0
B4: Drank
B5: Koffie | C5: kg | D5: 15.3
B6: Thee | C6: st | D6: 0.15
B7: Plat water | C7: lt | D7: 0.98
B8: Bruisend water | C8: lt | D8: 1.1
B9: Appelsiensap | C9: lt | D9: 3.2
B10: Smoothie kiwi (250ml) | C10: st | D10: 1.33
B11: Smoothie rood fruit (250ml) | C11: st | D11: 1.33
B12: Appelsap | C12: lt | D12: 1.06
B13: Tomatensap | C13: lt | D13: 0.99
B14: Chocolademelk | C14: lt | D14: 1.63
B15: Zelf invullen
B16: Zelf invullen
B17: Zelf invullen
B18: Zelf invullen
B19: Zelf invullen
B20: Melkproducten
B21: Fruit yoghurt (150gr) | C21: st | D21: 0.43
B22: Yoghurt met cereals (100gr) | C22: st | D22: 0.55
B23: Actimel (80gr) | C23: st | D23: 0.75
B24: Melk | C24: lt | D24: 0.72
B25: Kaas plakken (20gr) | C25: st | D25: 0.16
B26: Soja melk | C26: lt | D26: 3.2
B27: Brie | C27: kg | D27: 18.52
B28: Geitenkaas | C28: kg | D28: 12.4
B29: Chimay Blauw | C29: kg | D29: 53.55
B30: Cheddar | C30: kg | D30: 7.65
B31: Maredsous | C31: kg | D31: 5.91
B32: Kruidenkaas | C32: kg | D32: 9.68
B33: Cottage cheese | C33: lt | D33: 6.33
B34: Magere melk | C34: lt | D34: 0.64
B35: Zelf invullen
B36: Zelf invullen
B37: Zelf invullen
B38: Zelf invullen
B39: Zelf invullen
B40: Fruit
B41: Kiwi | C41: st | D41: 0.55
B42: Appel | C42: kg | D42: 1.9
B43: Peer | C43: kg | D43: 2.1
B44: Appelsien | C44: kg | D44: 2.28
B45: Druiven | C45: kg | D45: 4.42
B46: Fruitsalade | C46: kg | D46: 5.1
B47: Banaan | C47: kg | D47: 2.87
B48: Zelf invullen
B49: Zelf invullen
B50: Zelf invullen
B51: Zelf invullen
B52: Zelf invullen
B53: Warm buffet
B54: Ei | C54: st | D54: 0.09
B55: Spek | C55: kg | D55: 9.32
B56: Mini worstjes | C56: kg | D56: 8.4
B57: Tomaat | C57: kg | D57: 2.14
B58: Gebakken champignons | C58: kg | D58: 7.8
B59: Aardappelschijfjes | C59: kg | D59: 4
B60: Zelf invullen
B61: Zelf invullen
B62: Zelf invullen
B63: Zelf invullen
B64: Zelf invullen
B65: Vis
B66: Gerookte zalm | C66: kg | D66: 22.83
B67: Gerookte heilbot | C67: kg | D67: 31.78
B68: Maatjes | C68: kg | D68: 21.87
B69: Garnalen | C69: kg | D69: 40
B70: Wakame salade | C70: kg | D70: 18
B71: Zelf invullen
B72: Zelf invullen
B73: Zelf invullen
B74: Zelf invullen
B75: Zelf invullen
B76: Charcuterie
B77: Pancetta | C77: kg | D77: 10.27
B78: Gerookte kalkoen | C78: kg | D78: 9.27
B79: Gekookte ham | C79: kg | D79: 11.5
B80: Ganda ham | C80: kg | D80: 36
B81: Salami | C81: kg | D81: 11.51
B82: Zwarte pens | C82: kg | D82: 10.12
B83: Zelf invullen
B84: Zelf invullen
B85: Zelf invullen
B86: Zelf invullen
B87: Zelf invullen
B88: Zoet
B89: Nutella (15gr) | C89: st | D89: 0.16
B90: Confituur (15gr) | C90: st | D90: 0.17
B91: Smeerkaas (17gr) | C91: st | D91: 0.21
B92: Pannenkoeken | C92: st | D92: =33.9/15 -> 2.26
B93: Chocolade muizen (20gr) | C93: st | D93: 0.31
B94: Zoetjes | C94: st | D94: 0.02
B95: Suiker koffie (5gr) | C95: st | D95: 0.01
B96: Zelf invullen
B97: Zelf invullen
B98: Zelf invullen
B99: Zelf invullen
B100: Zelf invullen
B101: Salade en groenten
B102: Salade mix | C102: gr | D102: 0.01
B103: Sjalot | C103: kg | D103: 2.07
B104: Kerstomaat | C104: kg | D104: 1.03
B105: Mais | C105: gr | D105: 0.01
B106: Zelf invullen
B107: Zelf invullen
B108: Zelf invullen
B109: Zelf invullen
B110: Zelf invullen
B111: Garnituren
B112: Croutons | C112: kg | D112: 5.18
B113: Notenmix | C113: kg | D113: 23
B114: Augurken | C114: kg | D114: 3.36
B115: Mini uitjes op azijn | C115: kg | D115: 1.81
B116: Kappertjes | C116: lt | D116: 14.67
B117: Gehakte peterselie | C117: kg | D117: 18.5
B118: Citroen in kwartjes | C118: st | D118: 0.45
B119: Boter (8gr) | C119: st | D119: 0.08
B120: Margarine (15gr) | C120: st | D120: 0.05
B121: Zelf invullen
B122: Zelf invullen
B123: Zelf invullen
B124: Zelf invullen
B125: Zelf invullen
B126: Brood
A127: 17920000 | B127: Chocolade broodje premium | C127: st | D127: =35.35/48 -> 0.7364583333
A128: 21860000 | B128: Chocoladebroodje | C128: st | D128: =27.66/48 -> 0.57625
A129: 223162 | B129: Golden croissant | C129: st | D129: =25.48/52 -> 0.49
A130: 223805 | B130: Croissant recht | C130: st | D130: =25.48/52 -> 0.49
A131: 210300004 | B131: Premium suisse rond | C131: st | D131: =32.26/36 -> 0.8961111111
A132: 221978 | B132: Cinnamon scandi swirl | C132: st | D132: =34.65/35 -> 0.99
A133: 22320000 | B133: Mini assortiment viennoiserie | C133: st | D133: =50.83/450 -> 0.1129555556
A134: 223173 | B134: Mini danish selection | C134: st | D134: =56.08/112 -> 0.5007142857
A135: 17300003 | B135: Mini croissant gevuld | C135: st | D135: =70.62/108 -> 0.6538888889
A136: 222864 | B136: Assortiment resto | C136: st | D136: =25.17/100 -> 0.2517
A137: 223831 | B137: Assortiment Prestige | C137: st | D137: =33.83/100 -> 0.3383
A138: 220092 | B138: Midi rozenbroodje volkoren | C138: st | D138: =26.75/80 -> 0.334375
A139: 27690000 | B139: Molenaarsbrood donker | C139: st | D139: =33.83/8 -> 4.22875
A140: 23600001 | B140: Molenaarsbrood meergranen | C140: st | D140: =33.83/8 -> 4.22875
A141: 23610001 | B141: Molenaarsbrood wit | C141: st | D141: 4.22875
A142: 26100000 | B142: Toast brood wit | C142: st | D142: =12.95/4 -> 3.2375
A143: 225608 | B143: Toastbrood premium country | C143: st | D143: =45.1/10 -> 4.51
A144: 223284 | B144: PLUS Stokbrood wit bebloemd | C144: st | D144: =21.96/20 -> 1.098
A145: 224468 | B145: PLUS fitness stokbrood | C145: st | D145: =28.29/23 -> 1.23
A146: 24680000 | B146: Glutenvrij broodje wit | C146: st | D146: =27.03/24 -> 1.12625
B147: Zelf invullen
B148: Zelf invullen
B149: Zelf invullen
B150: Zelf invullen
B151: Zelf invullen

Sheet Ontbijtbuffet (leeg)
A1: ONTBIJTBUFFET
A2: Vul hier jouw eigen ontbijt in: geef de gewenste hoeveelheden in en voeg onderaan het aantal gasten toe. De foodcost wordt automatisch berekend.
A3: INGREDIËNTEN | B3: HOEVEELHEID | C3: EENHEID | D3: AANKOOPPRIJS | E3: FOODCOST | F3: FOODCOST % PER CATEGORIE
A4: Drank
A5: ='>>Producten-prijslijst'!B5 -> Koffie | C5: ='>>Producten-prijslijst'!C5 -> kg | D5: ='>>Producten-prijslijst'!D5 -> 15.3 | E5: =B5*D5 -> 0 | F5: =E20/$E$161 -> 
A6: ='>>Producten-prijslijst'!B6 -> Thee | C6: ='>>Producten-prijslijst'!C6 -> st | D6: ='>>Producten-prijslijst'!D6 -> 0.15 | E6: 0
A7: ='>>Producten-prijslijst'!B7 -> Plat water | C7: ='>>Producten-prijslijst'!C7 -> lt | D7: ='>>Producten-prijslijst'!D7 -> 0.98 | E7: 0
A8: ='>>Producten-prijslijst'!B8 -> Bruisend water | C8: ='>>Producten-prijslijst'!C8 -> lt | D8: ='>>Producten-prijslijst'!D8 -> 1.1 | E8: 0
A9: ='>>Producten-prijslijst'!B9 -> Appelsiensap | C9: ='>>Producten-prijslijst'!C9 -> lt | D9: ='>>Producten-prijslijst'!D9 -> 3.2 | E9: 0
A10: ='>>Producten-prijslijst'!B10 -> Smoothie kiwi (250ml) | C10: ='>>Producten-prijslijst'!C10 -> st | D10: ='>>Producten-prijslijst'!D10 -> 1.33 | E10: 0
A11: ='>>Producten-prijslijst'!B11 -> Smoothie rood fruit (250ml) | C11: ='>>Producten-prijslijst'!C11 -> st | D11: ='>>Producten-prijslijst'!D11 -> 1.33 | E11: 0
A12: ='>>Producten-prijslijst'!B12 -> Appelsap | C12: ='>>Producten-prijslijst'!C12 -> lt | D12: ='>>Producten-prijslijst'!D12 -> 1.06 | E12: 0
A13: ='>>Producten-prijslijst'!B13 -> Tomatensap | C13: ='>>Producten-prijslijst'!C13 -> lt | D13: ='>>Producten-prijslijst'!D13 -> 0.99 | E13: 0
A14: ='>>Producten-prijslijst'!B14 -> Chocolademelk | C14: ='>>Producten-prijslijst'!C14 -> lt | D14: ='>>Producten-prijslijst'!D14 -> 1.63 | E14: 0
A15: ='>>Producten-prijslijst'!B15 -> Zelf invullen | C15: ='>>Producten-prijslijst'!C15 -> 0 | D15: ='>>Producten-prijslijst'!D15 -> 0 | E15: 0
A16: ='>>Producten-prijslijst'!B16 -> Zelf invullen | C16: ='>>Producten-prijslijst'!C16 -> 0 | D16: ='>>Producten-prijslijst'!D16 -> 0 | E16: 0
A17: ='>>Producten-prijslijst'!B17 -> Zelf invullen | C17: ='>>Producten-prijslijst'!C17 -> 0 | D17: ='>>Producten-prijslijst'!D17 -> 0 | E17: 0
A18: ='>>Producten-prijslijst'!B18 -> Zelf invullen | C18: ='>>Producten-prijslijst'!C18 -> 0 | D18: ='>>Producten-prijslijst'!D18 -> 0 | E18: 0
A19: ='>>Producten-prijslijst'!B19 -> Zelf invullen | C19: ='>>Producten-prijslijst'!C19 -> 0 | D19: ='>>Producten-prijslijst'!D19 -> 0 | E19: 0
A20: Subtotaal: | E20: =SUM(E5:E19) -> 0
A21: Melkproducten
A22: ='>>Producten-prijslijst'!B21 -> Fruit yoghurt (150gr) | C22: ='>>Producten-prijslijst'!C21 -> st | D22: ='>>Producten-prijslijst'!D21 -> 0.43 | E22: =B22*D22 -> 0 | F22: =E41/$E$161 -> 
A23: ='>>Producten-prijslijst'!B22 -> Yoghurt met cereals (100gr) | C23: ='>>Producten-prijslijst'!C22 -> st | D23: ='>>Producten-prijslijst'!D22 -> 0.55 | E23: =B23*D23 -> 0
A24: ='>>Producten-prijslijst'!B23 -> Actimel (80gr) | C24: ='>>Producten-prijslijst'!C23 -> st | D24: ='>>Producten-prijslijst'!D23 -> 0.75 | E24: 0
A25: ='>>Producten-prijslijst'!B24 -> Melk | C25: ='>>Producten-prijslijst'!C24 -> lt | D25: ='>>Producten-prijslijst'!D24 -> 0.72 | E25: =B25*D25 -> 0
A26: ='>>Producten-prijslijst'!B25 -> Kaas plakken (20gr) | C26: ='>>Producten-prijslijst'!C25 -> st | D26: ='>>Producten-prijslijst'!D25 -> 0.16 | E26: 0
A27: ='>>Producten-prijslijst'!B26 -> Soja melk | C27: ='>>Producten-prijslijst'!C26 -> lt | D27: ='>>Producten-prijslijst'!D26 -> 3.2 | E27: 0
A28: ='>>Producten-prijslijst'!B27 -> Brie | C28: ='>>Producten-prijslijst'!C27 -> kg | D28: ='>>Producten-prijslijst'!D27 -> 18.52 | E28: 0
A29: ='>>Producten-prijslijst'!B28 -> Geitenkaas | C29: ='>>Producten-prijslijst'!C28 -> kg | D29: ='>>Producten-prijslijst'!D28 -> 12.4 | E29: 0
A30: ='>>Producten-prijslijst'!B29 -> Chimay Blauw | C30: ='>>Producten-prijslijst'!C29 -> kg | D30: ='>>Producten-prijslijst'!D29 -> 53.55 | E30: 0
A31: ='>>Producten-prijslijst'!B30 -> Cheddar | C31: ='>>Producten-prijslijst'!C30 -> kg | D31: ='>>Producten-prijslijst'!D30 -> 7.65 | E31: 0
A32: ='>>Producten-prijslijst'!B31 -> Maredsous | C32: ='>>Producten-prijslijst'!C31 -> kg | D32: ='>>Producten-prijslijst'!D31 -> 5.91 | E32: 0
A33: ='>>Producten-prijslijst'!B32 -> Kruidenkaas | C33: ='>>Producten-prijslijst'!C32 -> kg | D33: ='>>Producten-prijslijst'!D32 -> 9.68 | E33: 0
A34: ='>>Producten-prijslijst'!B33 -> Cottage cheese | C34: ='>>Producten-prijslijst'!C33 -> lt | D34: ='>>Producten-prijslijst'!D33 -> 6.33 | E34: 0
A35: ='>>Producten-prijslijst'!B34 -> Magere melk | C35: ='>>Producten-prijslijst'!C34 -> lt | D35: ='>>Producten-prijslijst'!D34 -> 0.64 | E35: 0
A36: ='>>Producten-prijslijst'!B35 -> Zelf invullen | C36: ='>>Producten-prijslijst'!C36 -> 0 | D36: ='>>Producten-prijslijst'!D36 -> 0 | E36: 0
A37: ='>>Producten-prijslijst'!B36 -> Zelf invullen | C37: ='>>Producten-prijslijst'!C37 -> 0 | D37: ='>>Producten-prijslijst'!D37 -> 0 | E37: 0
A38: ='>>Producten-prijslijst'!B37 -> Zelf invullen | C38: ='>>Producten-prijslijst'!C38 -> 0 | D38: ='>>Producten-prijslijst'!D38 -> 0 | E38: 0
A39: ='>>Producten-prijslijst'!B38 -> Zelf invullen | C39: ='>>Producten-prijslijst'!C39 -> 0 | D39: ='>>Producten-prijslijst'!D39 -> 0 | E39: 0
A40: ='>>Producten-prijslijst'!B39 -> Zelf invullen | C40: ='>>Producten-prijslijst'!C40 -> 0 | D40: ='>>Producten-prijslijst'!D40 -> 0 | E40: 0
A41: Subtotaal: | E41: =SUM(E22:E40) -> 0
A42: Fruit
A43: ='>>Producten-prijslijst'!B41 -> Kiwi | C43: ='>>Producten-prijslijst'!C41 -> st | D43: ='>>Producten-prijslijst'!D41 -> 0.55 | E43: =B43*D43 -> 0 | F43: =E55/$E$161 -> 
A44: ='>>Producten-prijslijst'!B42 -> Appel | C44: ='>>Producten-prijslijst'!C42 -> kg | D44: ='>>Producten-prijslijst'!D42 -> 1.9 | E44: =B44*D44 -> 0
A45: ='>>Producten-prijslijst'!B43 -> Peer | C45: ='>>Producten-prijslijst'!C43 -> kg | D45: ='>>Producten-prijslijst'!D43 -> 2.1 | E45: 0
A46: ='>>Producten-prijslijst'!B44 -> Appelsien | C46: ='>>Producten-prijslijst'!C44 -> kg | D46: ='>>Producten-prijslijst'!D44 -> 2.28 | E46: 0
A47: ='>>Producten-prijslijst'!B45 -> Druiven | C47: ='>>Producten-prijslijst'!C45 -> kg | D47: ='>>Producten-prijslijst'!D45 -> 4.42 | E47: 0
A48: ='>>Producten-prijslijst'!B46 -> Fruitsalade | C48: ='>>Producten-prijslijst'!C46 -> kg | D48: ='>>Producten-prijslijst'!D46 -> 5.1 | E48: 0
A49: ='>>Producten-prijslijst'!B47 -> Banaan | C49: ='>>Producten-prijslijst'!C47 -> kg | D49: ='>>Producten-prijslijst'!D47 -> 2.87 | E49: 0
A50: ='>>Producten-prijslijst'!B48 -> Zelf invullen | C50: ='>>Producten-prijslijst'!C48 -> 0 | D50: ='>>Producten-prijslijst'!D48 -> 0 | E50: 0
A51: ='>>Producten-prijslijst'!B49 -> Zelf invullen | C51: ='>>Producten-prijslijst'!C49 -> 0 | D51: ='>>Producten-prijslijst'!D49 -> 0 | E51: 0
A52: ='>>Producten-prijslijst'!B50 -> Zelf invullen | C52: ='>>Producten-prijslijst'!C50 -> 0 | D52: ='>>Producten-prijslijst'!D50 -> 0 | E52: 0
A53: ='>>Producten-prijslijst'!B51 -> Zelf invullen | C53: ='>>Producten-prijslijst'!C51 -> 0 | D53: ='>>Producten-prijslijst'!D51 -> 0 | E53: 0
A54: ='>>Producten-prijslijst'!B52 -> Zelf invullen | C54: ='>>Producten-prijslijst'!C52 -> 0 | D54: ='>>Producten-prijslijst'!D52 -> 0 | E54: 0
A55: Subtotaal: | E55: =SUM(E43:E54) -> 0
A56: Warm buffet
A57: ='>>Producten-prijslijst'!B54 -> Ei | C57: ='>>Producten-prijslijst'!C54 -> st | D57: ='>>Producten-prijslijst'!D54 -> 0.09 | E57: =B57*D57 -> 0 | F57: =E68/$E$161 -> 
A58: ='>>Producten-prijslijst'!B55 -> Spek | C58: ='>>Producten-prijslijst'!C55 -> kg | D58: ='>>Producten-prijslijst'!D55 -> 9.32 | E58: =B58*D58 -> 0
A59: ='>>Producten-prijslijst'!B56 -> Mini worstjes | C59: ='>>Producten-prijslijst'!C56 -> kg | D59: ='>>Producten-prijslijst'!D56 -> 8.4 | E59: 0
A60: ='>>Producten-prijslijst'!B57 -> Tomaat | C60: ='>>Producten-prijslijst'!C57 -> kg | D60: ='>>Producten-prijslijst'!D57 -> 2.14 | E60: 0
A61: ='>>Producten-prijslijst'!B58 -> Gebakken champignons | C61: ='>>Producten-prijslijst'!C58 -> kg | D61: ='>>Producten-prijslijst'!D58 -> 7.8 | E61: 0
A62: ='>>Producten-prijslijst'!B59 -> Aardappelschijfjes | C62: ='>>Producten-prijslijst'!C59 -> kg | D62: ='>>Producten-prijslijst'!D59 -> 4 | E62: 0
A63: ='>>Producten-prijslijst'!B60 -> Zelf invullen | C63: ='>>Producten-prijslijst'!C60 -> 0 | D63: ='>>Producten-prijslijst'!D60 -> 0 | E63: 0
A64: ='>>Producten-prijslijst'!B61 -> Zelf invullen | C64: ='>>Producten-prijslijst'!C61 -> 0 | D64: ='>>Producten-prijslijst'!D61 -> 0 | E64: 0
A65: ='>>Producten-prijslijst'!B62 -> Zelf invullen | C65: ='>>Producten-prijslijst'!C62 -> 0 | D65: ='>>Producten-prijslijst'!D62 -> 0 | E65: 0
A66: ='>>Producten-prijslijst'!B63 -> Zelf invullen | C66: ='>>Producten-prijslijst'!C63 -> 0 | D66: ='>>Producten-prijslijst'!D63 -> 0 | E66: 0
A67: ='>>Producten-prijslijst'!B64 -> Zelf invullen | C67: ='>>Producten-prijslijst'!C64 -> 0 | D67: ='>>Producten-prijslijst'!D64 -> 0 | E67: 0
A68: Subtotaal: | E68: =SUM(E57:E67) -> 0
A69: Vis
A70: ='>>Producten-prijslijst'!B66 -> Gerookte zalm | C70: ='>>Producten-prijslijst'!C66 -> kg | D70: ='>>Producten-prijslijst'!D66 -> 22.83 | E70: =B70*D70 -> 0 | F70: =E80/$E$161 -> 
A71: ='>>Producten-prijslijst'!B67 -> Gerookte heilbot | C71: ='>>Producten-prijslijst'!C67 -> kg | D71: ='>>Producten-prijslijst'!D67 -> 31.78 | E71: =B71*D71 -> 0
A72: ='>>Producten-prijslijst'!B68 -> Maatjes | C72: ='>>Producten-prijslijst'!C68 -> kg | D72: ='>>Producten-prijslijst'!D68 -> 21.87 | E72: 0
A73: ='>>Producten-prijslijst'!B69 -> Garnalen | C73: ='>>Producten-prijslijst'!C69 -> kg | D73: ='>>Producten-prijslijst'!D69 -> 40 | E73: 0
A74: ='>>Producten-prijslijst'!B70 -> Wakame salade | C74: ='>>Producten-prijslijst'!C70 -> kg | D74: ='>>Producten-prijslijst'!D70 -> 18 | E74: 0
A75: ='>>Producten-prijslijst'!B71 -> Zelf invullen | C75: ='>>Producten-prijslijst'!C71 -> 0 | D75: ='>>Producten-prijslijst'!D71 -> 0 | E75: 0
A76: ='>>Producten-prijslijst'!B72 -> Zelf invullen | C76: ='>>Producten-prijslijst'!C72 -> 0 | D76: ='>>Producten-prijslijst'!D72 -> 0 | E76: 0
A77: ='>>Producten-prijslijst'!B73 -> Zelf invullen | C77: ='>>Producten-prijslijst'!C73 -> 0 | D77: ='>>Producten-prijslijst'!D73 -> 0 | E77: 0
A78: ='>>Producten-prijslijst'!B74 -> Zelf invullen | C78: ='>>Producten-prijslijst'!C74 -> 0 | D78: ='>>Producten-prijslijst'!D74 -> 0 | E78: 0
A79: ='>>Producten-prijslijst'!B75 -> Zelf invullen | C79: ='>>Producten-prijslijst'!C75 -> 0 | D79: ='>>Producten-prijslijst'!D75 -> 0 | E79: 0
A80: Subtotaal: | E80: =SUM(E70:E79) -> 0
A81: Beleg
A82: ='>>Producten-prijslijst'!B77 -> Pancetta | C82: ='>>Producten-prijslijst'!C77 -> kg | D82: ='>>Producten-prijslijst'!D77 -> 10.27 | E82: =B82*D82 -> 0 | F82: =E93/$E$161 -> 
A83: ='>>Producten-prijslijst'!B78 -> Gerookte kalkoen | C83: ='>>Producten-prijslijst'!C78 -> kg | D83: ='>>Producten-prijslijst'!D78 -> 9.27 | E83: =B83*D83 -> 0
A84: ='>>Producten-prijslijst'!B79 -> Gekookte ham | C84: ='>>Producten-prijslijst'!C79 -> kg | D84: ='>>Producten-prijslijst'!D79 -> 11.5 | E84: 0
A85: ='>>Producten-prijslijst'!B80 -> Ganda ham | C85: ='>>Producten-prijslijst'!C80 -> kg | D85: ='>>Producten-prijslijst'!D80 -> 36 | E85: 0
A86: ='>>Producten-prijslijst'!B81 -> Salami | C86: ='>>Producten-prijslijst'!C81 -> kg | D86: ='>>Producten-prijslijst'!D81 -> 11.51 | E86: 0
A87: ='>>Producten-prijslijst'!B82 -> Zwarte pens | C87: ='>>Producten-prijslijst'!C82 -> kg | D87: ='>>Producten-prijslijst'!D82 -> 10.12 | E87: 0
A88: ='>>Producten-prijslijst'!B83 -> Zelf invullen | C88: ='>>Producten-prijslijst'!C83 -> 0 | D88: ='>>Producten-prijslijst'!D83 -> 0 | E88: 0
A89: ='>>Producten-prijslijst'!B84 -> Zelf invullen | C89: ='>>Producten-prijslijst'!C84 -> 0 | D89: ='>>Producten-prijslijst'!D84 -> 0 | E89: 0
A90: ='>>Producten-prijslijst'!B85 -> Zelf invullen | C90: ='>>Producten-prijslijst'!C85 -> 0 | D90: ='>>Producten-prijslijst'!D85 -> 0 | E90: 0
A91: ='>>Producten-prijslijst'!B86 -> Zelf invullen | C91: ='>>Producten-prijslijst'!C86 -> 0 | D91: ='>>Producten-prijslijst'!D86 -> 0 | E91: 0
A92: ='>>Producten-prijslijst'!B87 -> Zelf invullen | C92: ='>>Producten-prijslijst'!C87 -> 0 | D92: ='>>Producten-prijslijst'!D87 -> 0 | E92: 0
A93: Subtotaal: | E93: =SUM(E82:E92) -> 0
A94: Zoet
A95: ='>>Producten-prijslijst'!B89 -> Nutella (15gr) | C95: ='>>Producten-prijslijst'!C89 -> st | D95: ='>>Producten-prijslijst'!D89 -> 0.16 | E95: =B95*D95 -> 0 | F95: =E106/$E$161 -> 
A96: ='>>Producten-prijslijst'!B90 -> Confituur (15gr) | C96: ='>>Producten-prijslijst'!C90 -> st | D96: ='>>Producten-prijslijst'!D90 -> 0.17 | E96: =B96*D96 -> 0
A97: ='>>Producten-prijslijst'!B91 -> Smeerkaas (17gr) | C97: ='>>Producten-prijslijst'!C91 -> st | D97: ='>>Producten-prijslijst'!D91 -> 0.21 | E97: 0
A98: ='>>Producten-prijslijst'!B93 -> Chocolade muizen (20gr) | C98: ='>>Producten-prijslijst'!C93 -> st | D98: ='>>Producten-prijslijst'!D93 -> 0.31 | E98: 0
A99: ='>>Producten-prijslijst'!B94 -> Zoetjes | C99: ='>>Producten-prijslijst'!C94 -> st | D99: ='>>Producten-prijslijst'!D94 -> 0.02 | E99: 0
A100: ='>>Producten-prijslijst'!B95 -> Suiker koffie (5gr) | C100: ='>>Producten-prijslijst'!C95 -> st | D100: ='>>Producten-prijslijst'!D95 -> 0.01 | E100: 0
A101: ='>>Producten-prijslijst'!B96 -> Zelf invullen | C101: ='>>Producten-prijslijst'!C96 -> 0 | D101: ='>>Producten-prijslijst'!D96 -> 0 | E101: 0
A102: ='>>Producten-prijslijst'!B97 -> Zelf invullen | C102: ='>>Producten-prijslijst'!C97 -> 0 | D102: ='>>Producten-prijslijst'!D97 -> 0 | E102: 0
A103: ='>>Producten-prijslijst'!B98 -> Zelf invullen | C103: ='>>Producten-prijslijst'!C98 -> 0 | D103: ='>>Producten-prijslijst'!D98 -> 0 | E103: 0
A104: ='>>Producten-prijslijst'!B99 -> Zelf invullen | C104: ='>>Producten-prijslijst'!C99 -> 0 | D104: ='>>Producten-prijslijst'!D99 -> 0 | E104: 0
A105: ='>>Producten-prijslijst'!B100 -> Zelf invullen | C105: ='>>Producten-prijslijst'!C100 -> 0 | D105: ='>>Producten-prijslijst'!D100 -> 0 | E105: 0
A106: Subtotaal: | E106: =SUM(E95:E105) -> 0
A107: Salade en groenten
A108: ='>>Producten-prijslijst'!B102 -> Salade mix | C108: ='>>Producten-prijslijst'!C102 -> gr | D108: ='>>Producten-prijslijst'!D102 -> 0.01 | E108: =B108*D108 -> 0 | F108: =E117/$E$161 -> 
A109: ='>>Producten-prijslijst'!B103 -> Sjalot | C109: ='>>Producten-prijslijst'!C103 -> kg | D109: ='>>Producten-prijslijst'!D103 -> 2.07 | E109: =B109*D109 -> 0
A110: ='>>Producten-prijslijst'!B104 -> Kerstomaat | C110: ='>>Producten-prijslijst'!C104 -> kg | D110: ='>>Producten-prijslijst'!D104 -> 1.03 | E110: 0
A111: ='>>Producten-prijslijst'!B105 -> Mais | C111: ='>>Producten-prijslijst'!C105 -> gr | D111: ='>>Producten-prijslijst'!D105 -> 0.01 | E111: 0
A112: ='>>Producten-prijslijst'!B106 -> Zelf invullen | C112: ='>>Producten-prijslijst'!C106 -> 0 | D112: ='>>Producten-prijslijst'!D106 -> 0 | E112: 0
A113: ='>>Producten-prijslijst'!B107 -> Zelf invullen | C113: ='>>Producten-prijslijst'!C107 -> 0 | D113: ='>>Producten-prijslijst'!D107 -> 0 | E113: 0
A114: ='>>Producten-prijslijst'!B108 -> Zelf invullen | C114: ='>>Producten-prijslijst'!C108 -> 0 | D114: ='>>Producten-prijslijst'!D108 -> 0 | E114: 0
A115: ='>>Producten-prijslijst'!B109 -> Zelf invullen | C115: ='>>Producten-prijslijst'!C109 -> 0 | D115: ='>>Producten-prijslijst'!D109 -> 0 | E115: 0
A116: ='>>Producten-prijslijst'!B110 -> Zelf invullen | C116: ='>>Producten-prijslijst'!C110 -> 0 | D116: ='>>Producten-prijslijst'!D110 -> 0 | E116: 0
A117: Subtotaal: | E117: =SUM(E108:E116) -> 0
A118: Garnituren
A119: ='>>Producten-prijslijst'!B112 -> Croutons | C119: ='>>Producten-prijslijst'!C112 -> kg | D119: ='>>Producten-prijslijst'!D112 -> 5.18 | E119: =B119*D119 -> 0 | F119: =E133/$E$161 -> 
A120: ='>>Producten-prijslijst'!B113 -> Notenmix | C120: ='>>Producten-prijslijst'!C113 -> kg | D120: ='>>Producten-prijslijst'!D113 -> 23 | E120: =B120*D120 -> 0
A121: ='>>Producten-prijslijst'!B114 -> Augurken | C121: ='>>Producten-prijslijst'!C114 -> kg | D121: ='>>Producten-prijslijst'!D114 -> 3.36 | E121: 0
A122: ='>>Producten-prijslijst'!B115 -> Mini uitjes op azijn | C122: ='>>Producten-prijslijst'!C115 -> kg | D122: ='>>Producten-prijslijst'!D115 -> 1.81 | E122: 0
A123: ='>>Producten-prijslijst'!B116 -> Kappertjes | C123: ='>>Producten-prijslijst'!C116 -> lt | D123: ='>>Producten-prijslijst'!D116 -> 14.67 | E123: 0
A124: ='>>Producten-prijslijst'!B117 -> Gehakte peterselie | C124: ='>>Producten-prijslijst'!C117 -> kg | D124: ='>>Producten-prijslijst'!D117 -> 18.5 | E124: 0
A125: ='>>Producten-prijslijst'!B118 -> Citroen in kwartjes | C125: ='>>Producten-prijslijst'!C118 -> st | D125: ='>>Producten-prijslijst'!D118 -> 0.45 | E125: 0
A126: ='>>Producten-prijslijst'!B119 -> Boter (8gr) | C126: ='>>Producten-prijslijst'!C119 -> st | D126: ='>>Producten-prijslijst'!D119 -> 0.08 | E126: 0
A127: ='>>Producten-prijslijst'!B120 -> Margarine (15gr) | C127: ='>>Producten-prijslijst'!C120 -> st | D127: ='>>Producten-prijslijst'!D120 -> 0.05 | E127: 0
A128: ='>>Producten-prijslijst'!B121 -> Zelf invullen | C128: ='>>Producten-prijslijst'!C121 -> 0 | D128: ='>>Producten-prijslijst'!D121 -> 0 | E128: 0
A129: ='>>Producten-prijslijst'!B122 -> Zelf invullen | C129: ='>>Producten-prijslijst'!C122 -> 0 | D129: ='>>Producten-prijslijst'!D122 -> 0 | E129: 0
A130: ='>>Producten-prijslijst'!B123 -> Zelf invullen | C130: ='>>Producten-prijslijst'!C123 -> 0 | D130: ='>>Producten-prijslijst'!D123 -> 0 | E130: 0
A131: ='>>Producten-prijslijst'!B124 -> Zelf invullen | C131: ='>>Producten-prijslijst'!C124 -> 0 | D131: ='>>Producten-prijslijst'!D124 -> 0 | E131: 0
A132: ='>>Producten-prijslijst'!B125 -> Zelf invullen | C132: ='>>Producten-prijslijst'!C125 -> 0 | D132: ='>>Producten-prijslijst'!D125 -> 0 | E132: 0
A133: Subtotaal: | E133: =SUM(E119:E132) -> 0
A134: Brood
A135: ='>>Producten-prijslijst'!B127 -> Chocolade broodje premium | C135: ='>>Producten-prijslijst'!C127 -> st | D135: ='>>Producten-prijslijst'!D127 -> 0.7364583333 | E135: =B135*D135 -> 0 | F135: =E160/$E$161 -> 
A136: ='>>Producten-prijslijst'!B128 -> Chocoladebroodje | C136: ='>>Producten-prijslijst'!C128 -> st | D136: ='>>Producten-prijslijst'!D128 -> 0.57625 | E136: =B136*D136 -> 0
A137: ='>>Producten-prijslijst'!B129 -> Golden croissant | C137: ='>>Producten-prijslijst'!C129 -> st | D137: ='>>Producten-prijslijst'!D129 -> 0.49 | E137: 0
A138: ='>>Producten-prijslijst'!B130 -> Croissant recht | C138: ='>>Producten-prijslijst'!C130 -> st | D138: ='>>Producten-prijslijst'!D130 -> 0.49 | E138: 0
A139: ='>>Producten-prijslijst'!B131 -> Premium suisse rond | C139: ='>>Producten-prijslijst'!C131 -> st | D139: ='>>Producten-prijslijst'!D131 -> 0.8961111111 | E139: 0
A140: ='>>Producten-prijslijst'!B132 -> Cinnamon scandi swirl | C140: ='>>Producten-prijslijst'!C132 -> st | D140: ='>>Producten-prijslijst'!D132 -> 0.99 | E140: 0
A141: ='>>Producten-prijslijst'!B133 -> Mini assortiment viennoiserie | C141: ='>>Producten-prijslijst'!C133 -> st | D141: ='>>Producten-prijslijst'!D133 -> 0.1129555556 | E141: 0
A142: ='>>Producten-prijslijst'!B134 -> Mini danish selection | C142: ='>>Producten-prijslijst'!C134 -> st | D142: ='>>Producten-prijslijst'!D134 -> 0.5007142857 | E142: 0
A143: ='>>Producten-prijslijst'!B135 -> Mini croissant gevuld | C143: ='>>Producten-prijslijst'!C135 -> st | D143: ='>>Producten-prijslijst'!D135 -> 0.6538888889 | E143: 0
A144: ='>>Producten-prijslijst'!B136 -> Assortiment resto | C144: ='>>Producten-prijslijst'!C136 -> st | D144: ='>>Producten-prijslijst'!D136 -> 0.2517 | E144: 0
A145: ='>>Producten-prijslijst'!B137 -> Assortiment Prestige | C145: ='>>Producten-prijslijst'!C137 -> st | D145: ='>>Producten-prijslijst'!D137 -> 0.3383 | E145: 0
A146: ='>>Producten-prijslijst'!B138 -> Midi rozenbroodje volkoren | C146: ='>>Producten-prijslijst'!C138 -> st | D146: ='>>Producten-prijslijst'!D138 -> 0.334375 | E146: 0
A147: ='>>Producten-prijslijst'!B139 -> Molenaarsbrood donker | C147: ='>>Producten-prijslijst'!C139 -> st | D147: ='>>Producten-prijslijst'!D139 -> 4.22875 | E147: 0
A148: ='>>Producten-prijslijst'!B140 -> Molenaarsbrood meergranen | C148: ='>>Producten-prijslijst'!C140 -> st | D148: ='>>Producten-prijslijst'!D140 -> 4.22875 | E148: 0
A149: ='>>Producten-prijslijst'!B141 -> Molenaarsbrood wit | C149: ='>>Producten-prijslijst'!C141 -> st | D149: ='>>Producten-prijslijst'!D141 -> 4.22875 | E149: 0
A150: ='>>Producten-prijslijst'!B142 -> Toast brood wit | C150: ='>>Producten-prijslijst'!C142 -> st | D150: ='>>Producten-prijslijst'!D142 -> 3.2375 | E150: 0
A151: ='>>Producten-prijslijst'!B143 -> Toastbrood premium country | C151: ='>>Producten-prijslijst'!C143 -> st | D151: ='>>Producten-prijslijst'!D143 -> 4.51 | E151: 0
A152: ='>>Producten-prijslijst'!B144 -> PLUS Stokbrood wit bebloemd | C152: ='>>Producten-prijslijst'!C144 -> st | D152: ='>>Producten-prijslijst'!D144 -> 1.098 | E152: 0
A153: ='>>Producten-prijslijst'!B145 -> PLUS fitness stokbrood | C153: ='>>Producten-prijslijst'!C145 -> st | D153: ='>>Producten-prijslijst'!D145 -> 1.23 | E153: 0
A154: ='>>Producten-prijslijst'!B146 -> Glutenvrij broodje wit | C154: ='>>Producten-prijslijst'!C146 -> st | D154: ='>>Producten-prijslijst'!D146 -> 1.12625 | E154: 0
A155: ='>>Producten-prijslijst'!B147 -> Zelf invullen | C155: ='>>Producten-prijslijst'!C147 -> 0 | D155: ='>>Producten-prijslijst'!D147 -> 0 | E155: 0
A156: ='>>Producten-prijslijst'!B148 -> Zelf invullen | C156: ='>>Producten-prijslijst'!C148 -> 0 | D156: ='>>Producten-prijslijst'!D148 -> 0 | E156: 0
A157: ='>>Producten-prijslijst'!B149 -> Zelf invullen | C157: ='>>Producten-prijslijst'!C149 -> 0 | D157: ='>>Producten-prijslijst'!D149 -> 0 | E157: 0
A158: ='>>Producten-prijslijst'!B150 -> Zelf invullen | C158: ='>>Producten-prijslijst'!C150 -> 0 | D158: ='>>Producten-prijslijst'!D150 -> 0 | E158: 0
A159: ='>>Producten-prijslijst'!B151 -> Zelf invullen | C159: ='>>Producten-prijslijst'!C151 -> 0 | D159: ='>>Producten-prijslijst'!D151 -> 0 | E159: 0
A160: Subtotaal: | E160: =SUM(E135:E159) -> 0
A161: Totaal: | E161: =E20+E41+E55+E68+E80+E93+E106+E117+E133+E160 -> 0
A162: Totaal aantal gasten: | C162: 0
A163: Kost per persoon: | C163: =E161/C162 -> 

Sheet Basic Onbijtbuffet
A1: BASIC ONBIJTBUFFET
A2: Voorbeeld van een eenvoudig en betaalbaar hotelontbijt, samengesteld door onze chefs. Gebruik dit als inspiratie of pas het aan naar jouw eigen aanbod.
A3: INGREDIËNTEN | B3: HOEVEELHEID | C3: EENHEID | D3: AANKOOPPRIJS | E3: FOODCOST | F3: FOODCOST % PER CATEGORIE
A4: Drank
A5: ='>>Producten-prijslijst'!B5 -> Koffie | B5: 0.5 | C5: ='>>Producten-prijslijst'!C5 -> kg | D5: ='>>Producten-prijslijst'!D5 -> 15.3 | E5: =B5*D5 -> 7.65 | F5: =E20/$E$162 -> 0.06690374316
A6: ='>>Producten-prijslijst'!B6 -> Thee | B6: 1 | C6: ='>>Producten-prijslijst'!C6 -> st | D6: ='>>Producten-prijslijst'!D6 -> 0.15 | E6: 0.15
A7: ='>>Producten-prijslijst'!B7 -> Plat water | B7: 0.33 | C7: ='>>Producten-prijslijst'!C7 -> lt | D7: ='>>Producten-prijslijst'!D7 -> 0.98 | E7: 0.3234
A8: ='>>Producten-prijslijst'!B8 -> Bruisend water | B8: 0.33 | C8: ='>>Producten-prijslijst'!C8 -> lt | D8: ='>>Producten-prijslijst'!D8 -> 1.1 | E8: 0.363
A9: ='>>Producten-prijslijst'!B9 -> Appelsiensap | B9: 2 | C9: ='>>Producten-prijslijst'!C9 -> lt | D9: ='>>Producten-prijslijst'!D9 -> 3.2 | E9: 6.4
A10: ='>>Producten-prijslijst'!B10 -> Smoothie kiwi (250ml) | C10: ='>>Producten-prijslijst'!C10 -> st | D10: ='>>Producten-prijslijst'!D10 -> 1.33 | E10: 0
A11: ='>>Producten-prijslijst'!B11 -> Smoothie rood fruit (250ml) | C11: ='>>Producten-prijslijst'!C11 -> st | D11: ='>>Producten-prijslijst'!D11 -> 1.33 | E11: 0
A12: ='>>Producten-prijslijst'!B12 -> Appelsap | B12: 2 | C12: ='>>Producten-prijslijst'!C12 -> lt | D12: ='>>Producten-prijslijst'!D12 -> 1.06 | E12: 2.12
A13: ='>>Producten-prijslijst'!B13 -> Tomatensap | C13: ='>>Producten-prijslijst'!C13 -> lt | D13: ='>>Producten-prijslijst'!D13 -> 0.99 | E13: 0
A14: ='>>Producten-prijslijst'!B14 -> Chocolademelk | B14: 0.5 | C14: ='>>Producten-prijslijst'!C14 -> lt | D14: ='>>Producten-prijslijst'!D14 -> 1.63 | E14: 0.815
A15: ='>>Producten-prijslijst'!B15 -> Zelf invullen | C15: ='>>Producten-prijslijst'!C15 -> 0 | D15: ='>>Producten-prijslijst'!D15 -> 0 | E15: =B15*D15 -> 0
A16: ='>>Producten-prijslijst'!B16 -> Zelf invullen | C16: ='>>Producten-prijslijst'!C16 -> 0 | D16: ='>>Producten-prijslijst'!D16 -> 0 | E16: 0
A17: ='>>Producten-prijslijst'!B17 -> Zelf invullen | C17: ='>>Producten-prijslijst'!C17 -> 0 | D17: ='>>Producten-prijslijst'!D17 -> 0 | E17: 0
A18: ='>>Producten-prijslijst'!B18 -> Zelf invullen | C18: ='>>Producten-prijslijst'!C18 -> 0 | D18: ='>>Producten-prijslijst'!D18 -> 0 | E18: 0
A19: ='>>Producten-prijslijst'!B19 -> Zelf invullen | C19: ='>>Producten-prijslijst'!C19 -> 0 | D19: ='>>Producten-prijslijst'!D19 -> 0 | E19: 0
A20: Subtotaal: | E20: =SUM(E5:E19) -> 17.8214
A21: Melkproducten
A22: ='>>Producten-prijslijst'!B21 -> Fruit yoghurt (150gr) | B22: 20 | C22: ='>>Producten-prijslijst'!C21 -> st | D22: ='>>Producten-prijslijst'!D21 -> 0.43 | E22: =B22*D22 -> 8.6 | F22: =E41/$E$162 -> 0.1010779082
A23: ='>>Producten-prijslijst'!B22 -> Yoghurt met cereals (100gr) | C23: ='>>Producten-prijslijst'!C22 -> st | D23: ='>>Producten-prijslijst'!D22 -> 0.55 | E23: =B23*D23 -> 0
A24: ='>>Producten-prijslijst'!B23 -> Actimel (80gr) | C24: ='>>Producten-prijslijst'!C23 -> st | D24: ='>>Producten-prijslijst'!D23 -> 0.75 | E24: 0
A25: ='>>Producten-prijslijst'!B24 -> Melk | B25: 0.2 | C25: ='>>Producten-prijslijst'!C24 -> lt | D25: ='>>Producten-prijslijst'!D24 -> 0.72 | E25: =B25*D25 -> 0.144
A26: ='>>Producten-prijslijst'!B25 -> Kaas plakken (20gr) | B26: 0.5 | C26: ='>>Producten-prijslijst'!C25 -> st | D26: ='>>Producten-prijslijst'!D25 -> 0.16 | E26: 0.08
A27: ='>>Producten-prijslijst'!B26 -> Soja melk | B27: 1 | C27: ='>>Producten-prijslijst'!C26 -> lt | D27: ='>>Producten-prijslijst'!D26 -> 3.2 | E27: 3.2
A28: ='>>Producten-prijslijst'!B27 -> Brie | B28: 0.25 | C28: ='>>Producten-prijslijst'!C27 -> kg | D28: ='>>Producten-prijslijst'!D27 -> 18.52 | E28: 4.63
A29: ='>>Producten-prijslijst'!B28 -> Geitenkaas | C29: ='>>Producten-prijslijst'!C28 -> kg | D29: ='>>Producten-prijslijst'!D28 -> 12.4 | E29: 0
A30: ='>>Producten-prijslijst'!B29 -> Chimay Blauw | C30: ='>>Producten-prijslijst'!C29 -> kg | D30: ='>>Producten-prijslijst'!D29 -> 53.55 | E30: 0
A31: ='>>Producten-prijslijst'!B30 -> Cheddar | B31: 0.5 | C31: ='>>Producten-prijslijst'!C30 -> kg | D31: ='>>Producten-prijslijst'!D30 -> 7.65 | E31: 3.825
A32: ='>>Producten-prijslijst'!B31 -> Maredsous | B32: 0.25 | C32: ='>>Producten-prijslijst'!C31 -> kg | D32: ='>>Producten-prijslijst'!D31 -> 5.91 | E32: 1.4775
A33: ='>>Producten-prijslijst'!B32 -> Kruidenkaas | B33: 0.5 | C33: ='>>Producten-prijslijst'!C32 -> kg | D33: ='>>Producten-prijslijst'!D32 -> 9.68 | E33: 4.84
A34: ='>>Producten-prijslijst'!B33 -> Cottage cheese | C34: ='>>Producten-prijslijst'!C33 -> lt | D34: ='>>Producten-prijslijst'!D33 -> 6.33 | E34: 0
A35: ='>>Producten-prijslijst'!B34 -> Magere melk | B35: 0.2 | C35: ='>>Producten-prijslijst'!C34 -> lt | D35: ='>>Producten-prijslijst'!D34 -> 0.64 | E35: 0.128
A36: ='>>Producten-prijslijst'!B35 -> Zelf invullen | C36: ='>>Producten-prijslijst'!C36 -> 0 | D36: ='>>Producten-prijslijst'!D36 -> 0 | E36: 0
A37: ='>>Producten-prijslijst'!B36 -> Zelf invullen | C37: ='>>Producten-prijslijst'!C37 -> 0 | D37: ='>>Producten-prijslijst'!D37 -> 0 | E37: 0
A38: ='>>Producten-prijslijst'!B37 -> Zelf invullen | C38: ='>>Producten-prijslijst'!C38 -> 0 | D38: ='>>Producten-prijslijst'!D38 -> 0 | E38: 0
A39: ='>>Producten-prijslijst'!B38 -> Zelf invullen | C39: ='>>Producten-prijslijst'!C39 -> 0 | D39: ='>>Producten-prijslijst'!D39 -> 0 | E39: 0
A40: ='>>Producten-prijslijst'!B39 -> Zelf invullen | C40: ='>>Producten-prijslijst'!C40 -> 0 | D40: ='>>Producten-prijslijst'!D40 -> 0 | E40: 0
A41: Subtotaal: | E41: =SUM(E22:E40) -> 26.9245
A42: Fruit
A43: ='>>Producten-prijslijst'!B41 -> Kiwi | C43: ='>>Producten-prijslijst'!C41 -> st | D43: ='>>Producten-prijslijst'!D41 -> 0.55 | E43: =B43*D43 -> 0 | F43: =E55/$E$162 -> 0.05229494553
A44: ='>>Producten-prijslijst'!B42 -> Appel | B44: 1 | C44: ='>>Producten-prijslijst'!C42 -> kg | D44: ='>>Producten-prijslijst'!D42 -> 1.9 | E44: =B44*D44 -> 1.9
A45: ='>>Producten-prijslijst'!B43 -> Peer | B45: 1 | C45: ='>>Producten-prijslijst'!C43 -> kg | D45: ='>>Producten-prijslijst'!D43 -> 2.1 | E45: 2.1
A46: ='>>Producten-prijslijst'!B44 -> Appelsien | B46: 1 | C46: ='>>Producten-prijslijst'!C44 -> kg | D46: ='>>Producten-prijslijst'!D44 -> 2.28 | E46: 2.28
A47: ='>>Producten-prijslijst'!B45 -> Druiven | C47: ='>>Producten-prijslijst'!C45 -> kg | D47: ='>>Producten-prijslijst'!D45 -> 4.42 | E47: 0
A48: ='>>Producten-prijslijst'!B46 -> Fruitsalade | B48: 1.5 | C48: ='>>Producten-prijslijst'!C46 -> kg | D48: ='>>Producten-prijslijst'!D46 -> 5.1 | E48: 7.65
A49: ='>>Producten-prijslijst'!B47 -> Banaan | C49: ='>>Producten-prijslijst'!C47 -> kg | D49: ='>>Producten-prijslijst'!D47 -> 2.87 | E49: 0
A50: ='>>Producten-prijslijst'!B48 -> Zelf invullen | C50: ='>>Producten-prijslijst'!C48 -> 0 | D50: ='>>Producten-prijslijst'!D48 -> 0 | E50: 0
A51: ='>>Producten-prijslijst'!B49 -> Zelf invullen | C51: ='>>Producten-prijslijst'!C49 -> 0 | D51: ='>>Producten-prijslijst'!D49 -> 0 | E51: 0
A52: ='>>Producten-prijslijst'!B50 -> Zelf invullen | C52: ='>>Producten-prijslijst'!C50 -> 0 | D52: ='>>Producten-prijslijst'!D50 -> 0 | E52: 0
A53: ='>>Producten-prijslijst'!B51 -> Zelf invullen | C53: ='>>Producten-prijslijst'!C51 -> 0 | D53: ='>>Producten-prijslijst'!D51 -> 0 | E53: 0
A54: ='>>Producten-prijslijst'!B52 -> Zelf invullen | C54: ='>>Producten-prijslijst'!C52 -> 0 | D54: ='>>Producten-prijslijst'!D52 -> 0 | E54: 0
A55: Subtotaal: | E55: =SUM(E43:E54) -> 13.93
A56: Warm buffet
A57: ='>>Producten-prijslijst'!B54 -> Ei | B57: 36 | C57: ='>>Producten-prijslijst'!C54 -> st | D57: ='>>Producten-prijslijst'!D54 -> 0.09 | E57: =B57*D57 -> 3.24 | F57: =E68/$E$162 -> 0.06119221911
A58: ='>>Producten-prijslijst'!B55 -> Spek | B58: 0.5 | C58: ='>>Producten-prijslijst'!C55 -> kg | D58: ='>>Producten-prijslijst'!D55 -> 9.32 | E58: =B58*D58 -> 4.66
A59: ='>>Producten-prijslijst'!B56 -> Mini worstjes | B59: 1 | C59: ='>>Producten-prijslijst'!C56 -> kg | D59: ='>>Producten-prijslijst'!D56 -> 8.4 | E59: 8.4
A60: ='>>Producten-prijslijst'!B57 -> Tomaat | C60: ='>>Producten-prijslijst'!C57 -> kg | D60: ='>>Producten-prijslijst'!D57 -> 2.14 | E60: 0
A61: ='>>Producten-prijslijst'!B58 -> Gebakken champignons | C61: ='>>Producten-prijslijst'!C58 -> kg | D61: ='>>Producten-prijslijst'!D58 -> 7.8 | E61: 0
A62: ='>>Producten-prijslijst'!B59 -> Aardappelschijfjes | C62: ='>>Producten-prijslijst'!C59 -> kg | D62: ='>>Producten-prijslijst'!D59 -> 4 | E62: 0
A63: ='>>Producten-prijslijst'!B60 -> Zelf invullen | C63: ='>>Producten-prijslijst'!C60 -> 0 | D63: ='>>Producten-prijslijst'!D60 -> 0 | E63: 0
A64: ='>>Producten-prijslijst'!B61 -> Zelf invullen | C64: ='>>Producten-prijslijst'!C61 -> 0 | D64: ='>>Producten-prijslijst'!D61 -> 0 | E64: 0
A65: ='>>Producten-prijslijst'!B62 -> Zelf invullen | C65: ='>>Producten-prijslijst'!C62 -> 0 | D65: ='>>Producten-prijslijst'!D62 -> 0 | E65: 0
A66: ='>>Producten-prijslijst'!B63 -> Zelf invullen | C66: ='>>Producten-prijslijst'!C63 -> 0 | D66: ='>>Producten-prijslijst'!D63 -> 0 | E66: 0
A67: ='>>Producten-prijslijst'!B64 -> Zelf invullen | C67: ='>>Producten-prijslijst'!C64 -> 0 | D67: ='>>Producten-prijslijst'!D64 -> 0 | E67: 0
A68: Subtotaal: | E68: =SUM(E57:E67) -> 16.3
A69: Vis
A70: ='>>Producten-prijslijst'!B66 -> Gerookte zalm | B70: 1 | C70: ='>>Producten-prijslijst'!C66 -> kg | D70: ='>>Producten-prijslijst'!D66 -> 22.83 | E70: =B70*D70 -> 22.83 | F70: =E80/$E$162 -> 0.09246407096
A71: ='>>Producten-prijslijst'!B67 -> Gerookte heilbot | C71: ='>>Producten-prijslijst'!C67 -> kg | D71: ='>>Producten-prijslijst'!D67 -> 31.78 | E71: =B71*D71 -> 0
A72: ='>>Producten-prijslijst'!B68 -> Maatjes | C72: ='>>Producten-prijslijst'!C68 -> kg | D72: ='>>Producten-prijslijst'!D68 -> 21.87 | E72: 0
A73: ='>>Producten-prijslijst'!B69 -> Garnalen | C73: ='>>Producten-prijslijst'!C69 -> kg | D73: ='>>Producten-prijslijst'!D69 -> 40 | E73: 0
A74: ='>>Producten-prijslijst'!B70 -> Wakame salade | B74: 0.1 | C74: ='>>Producten-prijslijst'!C70 -> kg | D74: ='>>Producten-prijslijst'!D70 -> 18 | E74: 1.8
A75: ='>>Producten-prijslijst'!B71 -> Zelf invullen | C75: ='>>Producten-prijslijst'!C71 -> 0 | D75: ='>>Producten-prijslijst'!D71 -> 0 | E75: 0
A76: ='>>Producten-prijslijst'!B72 -> Zelf invullen | C76: ='>>Producten-prijslijst'!C72 -> 0 | D76: ='>>Producten-prijslijst'!D72 -> 0 | E76: 0
A77: ='>>Producten-prijslijst'!B73 -> Zelf invullen | C77: ='>>Producten-prijslijst'!C73 -> 0 | D77: ='>>Producten-prijslijst'!D73 -> 0 | E77: 0
A78: ='>>Producten-prijslijst'!B74 -> Zelf invullen | C78: ='>>Producten-prijslijst'!C74 -> 0 | D78: ='>>Producten-prijslijst'!D74 -> 0 | E78: 0
A79: ='>>Producten-prijslijst'!B75 -> Zelf invullen | C79: ='>>Producten-prijslijst'!C75 -> 0 | D79: ='>>Producten-prijslijst'!D75 -> 0 | E79: 0
A80: Subtotaal: | E80: =SUM(E70:E79) -> 24.63
A81: Charcuterie
A82: ='>>Producten-prijslijst'!B77 -> Pancetta | C82: ='>>Producten-prijslijst'!C77 -> kg | D82: ='>>Producten-prijslijst'!D77 -> 10.27 | E82: =B82*D82 -> 0 | F82: =E93/$E$162 -> 0.02855386617
A83: ='>>Producten-prijslijst'!B78 -> Gerookte kalkoen | B83: 0.2 | C83: ='>>Producten-prijslijst'!C78 -> kg | D83: ='>>Producten-prijslijst'!D78 -> 9.27 | E83: =B83*D83 -> 1.854
A84: ='>>Producten-prijslijst'!B79 -> Gekookte ham | B84: 0.3 | C84: ='>>Producten-prijslijst'!C79 -> kg | D84: ='>>Producten-prijslijst'!D79 -> 11.5 | E84: 3.45
A85: ='>>Producten-prijslijst'!B80 -> Ganda ham | C85: ='>>Producten-prijslijst'!C80 -> kg | D85: ='>>Producten-prijslijst'!D80 -> 36 | E85: 0
A86: ='>>Producten-prijslijst'!B81 -> Salami | B86: 0.2 | C86: ='>>Producten-prijslijst'!C81 -> kg | D86: ='>>Producten-prijslijst'!D81 -> 11.51 | E86: 2.302
A87: ='>>Producten-prijslijst'!B82 -> Zwarte pens | C87: ='>>Producten-prijslijst'!C82 -> kg | D87: ='>>Producten-prijslijst'!D82 -> 10.12 | E87: 0
A88: ='>>Producten-prijslijst'!B83 -> Zelf invullen | C88: ='>>Producten-prijslijst'!C83 -> 0 | D88: ='>>Producten-prijslijst'!D83 -> 0 | E88: 0
A89: ='>>Producten-prijslijst'!B84 -> Zelf invullen | C89: ='>>Producten-prijslijst'!C84 -> 0 | D89: ='>>Producten-prijslijst'!D84 -> 0 | E89: 0
A90: ='>>Producten-prijslijst'!B85 -> Zelf invullen | C90: ='>>Producten-prijslijst'!C85 -> 0 | D90: ='>>Producten-prijslijst'!D85 -> 0 | E90: 0
A91: ='>>Producten-prijslijst'!B86 -> Zelf invullen | C91: ='>>Producten-prijslijst'!C86 -> 0 | D91: ='>>Producten-prijslijst'!D86 -> 0 | E91: 0
A92: ='>>Producten-prijslijst'!B87 -> Zelf invullen | C92: ='>>Producten-prijslijst'!C87 -> 0 | D92: ='>>Producten-prijslijst'!D87 -> 0 | E92: 0
A93: Subtotaal: | E93: =SUM(E82:E92) -> 7.606
A94: Zoet
A95: ='>>Producten-prijslijst'!B89 -> Nutella (15gr) | B95: =120*0.2 -> 24 | C95: ='>>Producten-prijslijst'!C89 -> st | D95: ='>>Producten-prijslijst'!D89 -> 0.16 | E95: =B95*D95 -> 3.84 | F95: =E107/$E$162 -> 0.0718539309
A96: ='>>Producten-prijslijst'!B90 -> Confituur (15gr) | B96: =100*0.2 -> 20 | C96: ='>>Producten-prijslijst'!C90 -> st | D96: ='>>Producten-prijslijst'!D90 -> 0.17 | E96: =B96*D96 -> 3.4
A97: ='>>Producten-prijslijst'!B91 -> Smeerkaas (17gr) | B97: =80*0.2 -> 16 | C97: ='>>Producten-prijslijst'!C91 -> st | D97: ='>>Producten-prijslijst'!D91 -> 0.21 | E97: 3.36
A98: ='>>Producten-prijslijst'!B92 -> Pannenkoeken | C98: st | D98: ='>>Producten-prijslijst'!D92 -> 2.26 | E98: 0
A99: ='>>Producten-prijslijst'!B93 -> Chocolade muizen (20gr) | B99: =120*0.2 -> 24 | C99: ='>>Producten-prijslijst'!C93 -> st | D99: ='>>Producten-prijslijst'!D93 -> 0.31 | E99: 7.44
A100: ='>>Producten-prijslijst'!B94 -> Zoetjes | B100: =500*0.05 -> 25 | C100: ='>>Producten-prijslijst'!C94 -> st | D100: ='>>Producten-prijslijst'!D94 -> 0.02 | E100: 0.5
A101: ='>>Producten-prijslijst'!B95 -> Suiker koffie (5gr) | B101: =600*0.1 -> 60 | C101: ='>>Producten-prijslijst'!C95 -> st | D101: ='>>Producten-prijslijst'!D95 -> 0.01 | E101: 0.6
A102: ='>>Producten-prijslijst'!B96 -> Zelf invullen | C102: ='>>Producten-prijslijst'!C96 -> 0 | D102: ='>>Producten-prijslijst'!D96 -> 0 | E102: 0
A103: ='>>Producten-prijslijst'!B97 -> Zelf invullen | C103: ='>>Producten-prijslijst'!C97 -> 0 | D103: ='>>Producten-prijslijst'!D97 -> 0 | E103: 0
A104: ='>>Producten-prijslijst'!B98 -> Zelf invullen | C104: ='>>Producten-prijslijst'!C98 -> 0 | D104: ='>>Producten-prijslijst'!D98 -> 0 | E104: 0
A105: ='>>Producten-prijslijst'!B99 -> Zelf invullen | C105: ='>>Producten-prijslijst'!C99 -> 0 | D105: ='>>Producten-prijslijst'!D99 -> 0 | E105: 0
A106: ='>>Producten-prijslijst'!B100 -> Zelf invullen | C106: ='>>Producten-prijslijst'!C100 -> 0 | D106: ='>>Producten-prijslijst'!D100 -> 0 | E106: 0
A107: Subtotaal: | E107: =SUM(E95:E106) -> 19.14
A108: Salade en groenten
A109: ='>>Producten-prijslijst'!B102 -> Salade mix | B109: 900 | C109: ='>>Producten-prijslijst'!C102 -> gr | D109: ='>>Producten-prijslijst'!D102 -> 0.01 | E109: =B109*D109 -> 9 | F109: =E118/$E$162 -> 0.04207058917
A110: ='>>Producten-prijslijst'!B103 -> Sjalot | B110: 0.05 | C110: ='>>Producten-prijslijst'!C103 -> kg | D110: ='>>Producten-prijslijst'!D103 -> 2.07 | E110: =B110*D110 -> 0.1035
A111: ='>>Producten-prijslijst'!B104 -> Kerstomaat | B111: 0.1 | C111: ='>>Producten-prijslijst'!C104 -> kg | D111: ='>>Producten-prijslijst'!D104 -> 1.03 | E111: 0.103
A112: ='>>Producten-prijslijst'!B105 -> Mais | B112: 200 | C112: ='>>Producten-prijslijst'!C105 -> gr | D112: ='>>Producten-prijslijst'!D105 -> 0.01 | E112: 2
A113: ='>>Producten-prijslijst'!B106 -> Zelf invullen | C113: ='>>Producten-prijslijst'!C106 -> 0 | D113: ='>>Producten-prijslijst'!D106 -> 0 | E113: 0
A114: ='>>Producten-prijslijst'!B107 -> Zelf invullen | C114: ='>>Producten-prijslijst'!C107 -> 0 | D114: ='>>Producten-prijslijst'!D107 -> 0 | E114: 0
A115: ='>>Producten-prijslijst'!B108 -> Zelf invullen | C115: ='>>Producten-prijslijst'!C108 -> 0 | D115: ='>>Producten-prijslijst'!D108 -> 0 | E115: 0
A116: ='>>Producten-prijslijst'!B109 -> Zelf invullen | C116: ='>>Producten-prijslijst'!C109 -> 0 | D116: ='>>Producten-prijslijst'!D109 -> 0 | E116: 0
A117: ='>>Producten-prijslijst'!B110 -> Zelf invullen | C117: ='>>Producten-prijslijst'!C110 -> 0 | D117: ='>>Producten-prijslijst'!D110 -> 0 | E117: 0
A118: Subtotaal: | E118: =SUM(E109:E117) -> 11.2065
A119: Garnituren
A120: ='>>Producten-prijslijst'!B112 -> Croutons | B120: 0.15 | C120: ='>>Producten-prijslijst'!C112 -> kg | D120: ='>>Producten-prijslijst'!D112 -> 5.18 | E120: =B120*D120 -> 0.777 | F120: =E134/$E$162 -> 0.05773955138
A121: ='>>Producten-prijslijst'!B113 -> Notenmix | B121: 0.1 | C121: ='>>Producten-prijslijst'!C113 -> kg | D121: ='>>Producten-prijslijst'!D113 -> 23 | E121: =B121*D121 -> 2.3
A122: ='>>Producten-prijslijst'!B114 -> Augurken | B122: 0.05 | C122: ='>>Producten-prijslijst'!C114 -> kg | D122: ='>>Producten-prijslijst'!D114 -> 3.36 | E122: 0.168
A123: ='>>Producten-prijslijst'!B115 -> Mini uitjes op azijn | B123: 0.03 | C123: ='>>Producten-prijslijst'!C115 -> kg | D123: ='>>Producten-prijslijst'!D115 -> 1.81 | E123: 0.0543
A124: ='>>Producten-prijslijst'!B116 -> Kappertjes | B124: 0.05 | C124: ='>>Producten-prijslijst'!C116 -> lt | D124: ='>>Producten-prijslijst'!D116 -> 14.67 | E124: 0.7335
A125: ='>>Producten-prijslijst'!B117 -> Gehakte peterselie | B125: 0.05 | C125: ='>>Producten-prijslijst'!C117 -> kg | D125: ='>>Producten-prijslijst'!D117 -> 18.5 | E125: 0.925
A126: ='>>Producten-prijslijst'!B118 -> Citroen in kwartjes | B126: 0.05 | C126: ='>>Producten-prijslijst'!C118 -> st | D126: ='>>Producten-prijslijst'!D118 -> 0.45 | E126: 0.0225
A127: ='>>Producten-prijslijst'!B119 -> Boter (8gr) | B127: 80 | C127: ='>>Producten-prijslijst'!C119 -> st | D127: ='>>Producten-prijslijst'!D119 -> 0.08 | E127: 6.4
A128: ='>>Producten-prijslijst'!B120 -> Margarine (15gr) | B128: 80 | C128: ='>>Producten-prijslijst'!C120 -> st | D128: ='>>Producten-prijslijst'!D120 -> 0.05 | E128: 4
A129: ='>>Producten-prijslijst'!B121 -> Zelf invullen | C129: ='>>Producten-prijslijst'!C121 -> 0 | D129: ='>>Producten-prijslijst'!D121 -> 0 | E129: 0
A130: ='>>Producten-prijslijst'!B122 -> Zelf invullen | C130: ='>>Producten-prijslijst'!C122 -> 0 | D130: ='>>Producten-prijslijst'!D122 -> 0 | E130: 0
A131: ='>>Producten-prijslijst'!B123 -> Zelf invullen | C131: ='>>Producten-prijslijst'!C123 -> 0 | D131: ='>>Producten-prijslijst'!D123 -> 0 | E131: 0
A132: ='>>Producten-prijslijst'!B124 -> Zelf invullen | C132: ='>>Producten-prijslijst'!C124 -> 0 | D132: ='>>Producten-prijslijst'!D124 -> 0 | E132: 0
A133: ='>>Producten-prijslijst'!B125 -> Zelf invullen | C133: ='>>Producten-prijslijst'!C125 -> 0 | D133: ='>>Producten-prijslijst'!D125 -> 0 | E133: 0
A134: Subtotaal: | E134: =SUM(E120:E133) -> 15.3803
A135: Brood
A136: ='>>Producten-prijslijst'!B127 -> Chocolade broodje premium | C136: ='>>Producten-prijslijst'!C127 -> st | D136: ='>>Producten-prijslijst'!D127 -> 0.7364583333 | E136: =B136*D136 -> 0 | F136: =E161/$E$162 -> 0.4258491754
A137: ='>>Producten-prijslijst'!B128 -> Chocoladebroodje | B137: 20 | C137: ='>>Producten-prijslijst'!C128 -> st | D137: ='>>Producten-prijslijst'!D128 -> 0.57625 | E137: =B137*D137 -> 11.525
A138: ='>>Producten-prijslijst'!B129 -> Golden croissant | C138: ='>>Producten-prijslijst'!C129 -> st | D138: ='>>Producten-prijslijst'!D129 -> 0.49 | E138: =B138*D138 -> 0
A139: ='>>Producten-prijslijst'!B130 -> Croissant recht | B139: 40 | C139: ='>>Producten-prijslijst'!C130 -> st | D139: ='>>Producten-prijslijst'!D130 -> 0.49 | E139: =B139*D139 -> 19.6
A140: ='>>Producten-prijslijst'!B131 -> Premium suisse rond | C140: ='>>Producten-prijslijst'!C131 -> st | D140: ='>>Producten-prijslijst'!D131 -> 0.8961111111 | E140: 0
A141: ='>>Producten-prijslijst'!B132 -> Cinnamon scandi swirl | C141: ='>>Producten-prijslijst'!C132 -> st | D141: ='>>Producten-prijslijst'!D132 -> 0.99 | E141: 0
A142: ='>>Producten-prijslijst'!B133 -> Mini assortiment viennoiserie | B142: 40 | C142: ='>>Producten-prijslijst'!C133 -> st | D142: ='>>Producten-prijslijst'!D133 -> 0.1129555556 | E142: 4.518222222
A143: ='>>Producten-prijslijst'!B134 -> Mini danish selection | B143: 20 | C143: ='>>Producten-prijslijst'!C134 -> st | D143: ='>>Producten-prijslijst'!D134 -> 0.5007142857 | E143: 10.01428571
A144: ='>>Producten-prijslijst'!B135 -> Mini croissant gevuld | B144: 20 | C144: ='>>Producten-prijslijst'!C135 -> st | D144: ='>>Producten-prijslijst'!D135 -> 0.6538888889 | E144: 13.07777778
A145: ='>>Producten-prijslijst'!B136 -> Assortiment resto | B145: 30 | C145: ='>>Producten-prijslijst'!C136 -> st | D145: ='>>Producten-prijslijst'!D136 -> 0.2517 | E145: 7.551
A146: ='>>Producten-prijslijst'!B137 -> Assortiment Prestige | B146: 30 | C146: ='>>Producten-prijslijst'!C137 -> st | D146: ='>>Producten-prijslijst'!D137 -> 0.3383 | E146: 10.149
A147: ='>>Producten-prijslijst'!B138 -> Midi rozenbroodje volkoren | C147: ='>>Producten-prijslijst'!C138 -> st | D147: ='>>Producten-prijslijst'!D138 -> 0.334375 | E147: 0
A148: ='>>Producten-prijslijst'!B139 -> Molenaarsbrood donker | C148: ='>>Producten-prijslijst'!C139 -> st | D148: ='>>Producten-prijslijst'!D139 -> 4.22875 | E148: 0
A149: ='>>Producten-prijslijst'!B140 -> Molenaarsbrood meergranen | B149: 2 | C149: ='>>Producten-prijslijst'!C140 -> st | D149: ='>>Producten-prijslijst'!D140 -> 4.22875 | E149: 8.4575
A150: ='>>Producten-prijslijst'!B141 -> Molenaarsbrood wit | B150: 2 | C150: ='>>Producten-prijslijst'!C141 -> st | D150: ='>>Producten-prijslijst'!D141 -> 4.22875 | E150: 8.4575
A151: ='>>Producten-prijslijst'!B142 -> Toast brood wit | B151: 1 | C151: ='>>Producten-prijslijst'!C142 -> st | D151: ='>>Producten-prijslijst'!D142 -> 3.2375 | E151: 3.2375
A152: ='>>Producten-prijslijst'!B143 -> Toastbrood premium country | B152: 2 | C152: ='>>Producten-prijslijst'!C143 -> st | D152: ='>>Producten-prijslijst'!D143 -> 4.51 | E152: 9.02
A153: ='>>Producten-prijslijst'!B144 -> PLUS Stokbrood wit bebloemd | B153: 2 | C153: ='>>Producten-prijslijst'!C144 -> st | D153: ='>>Producten-prijslijst'!D144 -> 1.098 | E153: 2.196
A154: ='>>Producten-prijslijst'!B145 -> PLUS fitness stokbrood | C154: ='>>Producten-prijslijst'!C145 -> st | D154: ='>>Producten-prijslijst'!D145 -> 1.23 | E154: 0
A155: ='>>Producten-prijslijst'!B146 -> Glutenvrij broodje wit | B155: 5 | C155: ='>>Producten-prijslijst'!C146 -> st | D155: ='>>Producten-prijslijst'!D146 -> 1.12625 | E155: 5.63125
A156: ='>>Producten-prijslijst'!B147 -> Zelf invullen | C156: ='>>Producten-prijslijst'!C147 -> 0 | D156: ='>>Producten-prijslijst'!D147 -> 0 | E156: 0
A157: ='>>Producten-prijslijst'!B148 -> Zelf invullen | C157: ='>>Producten-prijslijst'!C148 -> 0 | D157: ='>>Producten-prijslijst'!D148 -> 0 | E157: 0
A158: ='>>Producten-prijslijst'!B149 -> Zelf invullen | C158: ='>>Producten-prijslijst'!C149 -> 0 | D158: ='>>Producten-prijslijst'!D149 -> 0 | E158: 0
A159: ='>>Producten-prijslijst'!B150 -> Zelf invullen | C159: ='>>Producten-prijslijst'!C150 -> 0 | D159: ='>>Producten-prijslijst'!D150 -> 0 | E159: 0
A160: ='>>Producten-prijslijst'!B151 -> Zelf invullen | C160: ='>>Producten-prijslijst'!C151 -> 0 | D160: ='>>Producten-prijslijst'!D151 -> 0 | E160: 0
A161: Subtotaal: | E161: =SUM(E136:E160) -> 113.4350357
A162: Totaal: | E162: =E20+E41+E55+E68+E80+E93+E107+E118+E134+E161 -> 266.3737357
A163: Totaal aantal gasten: | C163: 100
A164: Kost per persoon: | C164: =E162/C163 -> 2.663737357

Sheet Comfort Onbijtbuffet
A1: COMFORT ONBIJTBUFFET
A2: Voorbeeld van een uitgebreider hotelontbijt met extra variatie en beleving, samengesteld door onze chefs. Ideaal om gasten nét dat beetje meer te bieden.
A3: INGREDIËNTEN | B3: HOEVEELHEID | C3: EENHEID | D3: AANKOOPPRIJS | E3: FOODCOST | F3: FOODCOST % PER CATEGORIE
A4: Drank
A5: ='>>Producten-prijslijst'!B5 -> Koffie | B5: 0.5 | C5: ='>>Producten-prijslijst'!C5 -> kg | D5: ='>>Producten-prijslijst'!D5 -> 15.3 | E5: =B5*D5 -> 7.65 | F5: =E20/$E$162 -> 0.04766559312
A6: ='>>Producten-prijslijst'!B6 -> Thee | B6: 1 | C6: ='>>Producten-prijslijst'!C6 -> st | D6: ='>>Producten-prijslijst'!D6 -> 0.15 | E6: 0.15
A7: ='>>Producten-prijslijst'!B7 -> Plat water | B7: 0.33 | C7: ='>>Producten-prijslijst'!C7 -> lt | D7: ='>>Producten-prijslijst'!D7 -> 0.98 | E7: 0.3234
A8: ='>>Producten-prijslijst'!B8 -> Bruisend water | B8: 0.33 | C8: ='>>Producten-prijslijst'!C8 -> lt | D8: ='>>Producten-prijslijst'!D8 -> 1.1 | E8: 0.363
A9: ='>>Producten-prijslijst'!B9 -> Appelsiensap | B9: 2 | C9: ='>>Producten-prijslijst'!C9 -> lt | D9: ='>>Producten-prijslijst'!D9 -> 3.2 | E9: 6.4
A10: ='>>Producten-prijslijst'!B10 -> Smoothie kiwi (250ml) | B10: 2 | C10: ='>>Producten-prijslijst'!C10 -> st | D10: ='>>Producten-prijslijst'!D10 -> 1.33 | E10: 2.66
A11: ='>>Producten-prijslijst'!B11 -> Smoothie rood fruit (250ml) | B11: 2 | C11: ='>>Producten-prijslijst'!C11 -> st | D11: ='>>Producten-prijslijst'!D11 -> 1.33 | E11: 2.66
A12: ='>>Producten-prijslijst'!B12 -> Appelsap | B12: 2 | C12: ='>>Producten-prijslijst'!C12 -> lt | D12: ='>>Producten-prijslijst'!D12 -> 1.06 | E12: 2.12
A13: ='>>Producten-prijslijst'!B13 -> Tomatensap | B13: 0.5 | C13: ='>>Producten-prijslijst'!C13 -> lt | D13: ='>>Producten-prijslijst'!D13 -> 0.99 | E13: 0.495
A14: ='>>Producten-prijslijst'!B14 -> Chocolademelk | B14: 0.5 | C14: ='>>Producten-prijslijst'!C14 -> lt | D14: ='>>Producten-prijslijst'!D14 -> 1.63 | E14: 0.815
A15: ='>>Producten-prijslijst'!B15 -> Zelf invullen | C15: ='>>Producten-prijslijst'!C15 -> 0 | D15: ='>>Producten-prijslijst'!D15 -> 0 | E15: 0
A16: ='>>Producten-prijslijst'!B16 -> Zelf invullen | C16: ='>>Producten-prijslijst'!C16 -> 0 | D16: ='>>Producten-prijslijst'!D16 -> 0 | E16: 0
A17: ='>>Producten-prijslijst'!B17 -> Zelf invullen | C17: ='>>Producten-prijslijst'!C17 -> 0 | D17: ='>>Producten-prijslijst'!D17 -> 0 | E17: 0
A18: ='>>Producten-prijslijst'!B18 -> Zelf invullen | C18: ='>>Producten-prijslijst'!C18 -> 0 | D18: ='>>Producten-prijslijst'!D18 -> 0 | E18: 0
A19: ='>>Producten-prijslijst'!B19 -> Zelf invullen | C19: ='>>Producten-prijslijst'!C19 -> 0 | D19: ='>>Producten-prijslijst'!D19 -> 0 | E19: 0
A20: Subtotaal: | E20: =SUM(E5:E19) -> 23.6364
A21: Melkproducten
A22: ='>>Producten-prijslijst'!B21 -> Fruit yoghurt (150gr) | B22: 12 | C22: ='>>Producten-prijslijst'!C21 -> st | D22: ='>>Producten-prijslijst'!D21 -> 0.43 | E22: =B22*D22 -> 5.16 | F22: =E41/$E$162 -> 0.07419037325
A23: ='>>Producten-prijslijst'!B22 -> Yoghurt met cereals (100gr) | B23: 10 | C23: ='>>Producten-prijslijst'!C22 -> st | D23: ='>>Producten-prijslijst'!D22 -> 0.55 | E23: =B23*D23 -> 5.5
A24: ='>>Producten-prijslijst'!B23 -> Actimel (80gr) | B24: 2 | C24: ='>>Producten-prijslijst'!C23 -> st | D24: ='>>Producten-prijslijst'!D23 -> 0.75 | E24: 1.5
A25: ='>>Producten-prijslijst'!B24 -> Melk | B25: 0.2 | C25: ='>>Producten-prijslijst'!C24 -> lt | D25: ='>>Producten-prijslijst'!D24 -> 0.72 | E25: =B25*D25 -> 0.144
A26: ='>>Producten-prijslijst'!B25 -> Kaas plakken (20gr) | B26: 0.5 | C26: ='>>Producten-prijslijst'!C25 -> st | D26: ='>>Producten-prijslijst'!D25 -> 0.16 | E26: 0.08
A27: ='>>Producten-prijslijst'!B26 -> Soja melk | B27: 1 | C27: ='>>Producten-prijslijst'!C26 -> lt | D27: ='>>Producten-prijslijst'!D26 -> 3.2 | E27: 3.2
A28: ='>>Producten-prijslijst'!B27 -> Brie | B28: 0.25 | C28: ='>>Producten-prijslijst'!C27 -> kg | D28: ='>>Producten-prijslijst'!D27 -> 18.52 | E28: 4.63
A29: ='>>Producten-prijslijst'!B28 -> Geitenkaas | B29: 0.5 | C29: ='>>Producten-prijslijst'!C28 -> kg | D29: ='>>Producten-prijslijst'!D28 -> 12.4 | E29: 6.2
A30: ='>>Producten-prijslijst'!B29 -> Chimay Blauw | C30: ='>>Producten-prijslijst'!C29 -> kg | D30: ='>>Producten-prijslijst'!D29 -> 53.55 | E30: 0
A31: ='>>Producten-prijslijst'!B30 -> Cheddar | B31: 0.5 | C31: ='>>Producten-prijslijst'!C30 -> kg | D31: ='>>Producten-prijslijst'!D30 -> 7.65 | E31: 3.825
A32: ='>>Producten-prijslijst'!B31 -> Maredsous | C32: ='>>Producten-prijslijst'!C31 -> kg | D32: ='>>Producten-prijslijst'!D31 -> 5.91 | E32: 0
A33: ='>>Producten-prijslijst'!B32 -> Kruidenkaas | B33: 0.5 | C33: ='>>Producten-prijslijst'!C32 -> kg | D33: ='>>Producten-prijslijst'!D32 -> 9.68 | E33: 4.84
A34: ='>>Producten-prijslijst'!B33 -> Cottage cheese | B34: 0.25 | C34: ='>>Producten-prijslijst'!C33 -> lt | D34: ='>>Producten-prijslijst'!D33 -> 6.33 | E34: 1.5825
A35: ='>>Producten-prijslijst'!B34 -> Magere melk | B35: 0.2 | C35: ='>>Producten-prijslijst'!C34 -> lt | D35: ='>>Producten-prijslijst'!D34 -> 0.64 | E35: 0.128
A36: ='>>Producten-prijslijst'!B35 -> Zelf invullen | C36: ='>>Producten-prijslijst'!C36 -> 0 | D36: ='>>Producten-prijslijst'!D36 -> 0 | E36: 0
A37: ='>>Producten-prijslijst'!B36 -> Zelf invullen | C37: ='>>Producten-prijslijst'!C37 -> 0 | D37: ='>>Producten-prijslijst'!D37 -> 0 | E37: 0
A38: ='>>Producten-prijslijst'!B37 -> Zelf invullen | C38: ='>>Producten-prijslijst'!C38 -> 0 | D38: ='>>Producten-prijslijst'!D38 -> 0 | E38: 0
A39: ='>>Producten-prijslijst'!B38 -> Zelf invullen | C39: ='>>Producten-prijslijst'!C39 -> 0 | D39: ='>>Producten-prijslijst'!D39 -> 0 | E39: 0
A40: ='>>Producten-prijslijst'!B39 -> Zelf invullen | C40: ='>>Producten-prijslijst'!C40 -> 0 | D40: ='>>Producten-prijslijst'!D40 -> 0 | E40: 0
A41: Subtotaal: | E41: =SUM(E22:E40) -> 36.7895
A42: Fruit
A43: ='>>Producten-prijslijst'!B41 -> Kiwi | B43: 5 | C43: ='>>Producten-prijslijst'!C41 -> st | D43: ='>>Producten-prijslijst'!D41 -> 0.55 | E43: =B43*D43 -> 2.75 | F43: =E55/$E$162 -> 0.05412603101
A44: ='>>Producten-prijslijst'!B42 -> Appel | B44: 1 | C44: ='>>Producten-prijslijst'!C42 -> kg | D44: ='>>Producten-prijslijst'!D42 -> 1.9 | E44: =B44*D44 -> 1.9
A45: ='>>Producten-prijslijst'!B43 -> Peer | B45: 1 | C45: ='>>Producten-prijslijst'!C43 -> kg | D45: ='>>Producten-prijslijst'!D43 -> 2.1 | E45: 2.1
A46: ='>>Producten-prijslijst'!B44 -> Appelsien | B46: 1 | C46: ='>>Producten-prijslijst'!C44 -> kg | D46: ='>>Producten-prijslijst'!D44 -> 2.28 | E46: 2.28
A47: ='>>Producten-prijslijst'!B45 -> Druiven | B47: 1 | C47: ='>>Producten-prijslijst'!C45 -> kg | D47: ='>>Producten-prijslijst'!D45 -> 4.42 | E47: 4.42
A48: ='>>Producten-prijslijst'!B46 -> Fruitsalade | B48: 1.5 | C48: ='>>Producten-prijslijst'!C46 -> kg | D48: ='>>Producten-prijslijst'!D46 -> 5.1 | E48: 7.65
A49: ='>>Producten-prijslijst'!B47 -> Banaan | B49: 2 | C49: ='>>Producten-prijslijst'!C47 -> kg | D49: ='>>Producten-prijslijst'!D47 -> 2.87 | E49: 5.74
A50: ='>>Producten-prijslijst'!B48 -> Zelf invullen | C50: ='>>Producten-prijslijst'!C48 -> 0 | D50: ='>>Producten-prijslijst'!D48 -> 0 | E50: 0
A51: ='>>Producten-prijslijst'!B49 -> Zelf invullen | C51: ='>>Producten-prijslijst'!C49 -> 0 | D51: ='>>Producten-prijslijst'!D49 -> 0 | E51: 0
A52: ='>>Producten-prijslijst'!B50 -> Zelf invullen | C52: ='>>Producten-prijslijst'!C50 -> 0 | D52: ='>>Producten-prijslijst'!D50 -> 0 | E52: 0
A53: ='>>Producten-prijslijst'!B51 -> Zelf invullen | C53: ='>>Producten-prijslijst'!C51 -> 0 | D53: ='>>Producten-prijslijst'!D51 -> 0 | E53: 0
A54: ='>>Producten-prijslijst'!B52 -> Zelf invullen | C54: ='>>Producten-prijslijst'!C52 -> 0 | D54: ='>>Producten-prijslijst'!D52 -> 0 | E54: 0
A55: Subtotaal: | E55: =SUM(E43:E54) -> 26.84
A56: Warm buffet
A57: ='>>Producten-prijslijst'!B54 -> Ei | B57: 36 | C57: ='>>Producten-prijslijst'!C54 -> st | D57: ='>>Producten-prijslijst'!D54 -> 0.09 | E57: =B57*D57 -> 3.24 | F57: =E68/$E$162 -> 0.04584781353
A58: ='>>Producten-prijslijst'!B55 -> Spek | B58: 0.5 | C58: ='>>Producten-prijslijst'!C55 -> kg | D58: ='>>Producten-prijslijst'!D55 -> 9.32 | E58: =B58*D58 -> 4.66
A59: ='>>Producten-prijslijst'!B56 -> Mini worstjes | B59: 1 | C59: ='>>Producten-prijslijst'!C56 -> kg | D59: ='>>Producten-prijslijst'!D56 -> 8.4 | E59: 8.4
A60: ='>>Producten-prijslijst'!B57 -> Tomaat | B60: 0.25 | C60: ='>>Producten-prijslijst'!C57 -> kg | D60: ='>>Producten-prijslijst'!D57 -> 2.14 | E60: 0.535
A61: ='>>Producten-prijslijst'!B58 -> Gebakken champignons | B61: 0.5 | C61: ='>>Producten-prijslijst'!C58 -> kg | D61: ='>>Producten-prijslijst'!D58 -> 7.8 | E61: 3.9
A62: ='>>Producten-prijslijst'!B59 -> Aardappelschijfjes | B62: 0.5 | C62: ='>>Producten-prijslijst'!C59 -> kg | D62: ='>>Producten-prijslijst'!D59 -> 4 | E62: 2
A63: ='>>Producten-prijslijst'!B60 -> Zelf invullen | C63: ='>>Producten-prijslijst'!C60 -> 0 | D63: ='>>Producten-prijslijst'!D60 -> 0 | E63: 0
A64: ='>>Producten-prijslijst'!B61 -> Zelf invullen | C64: ='>>Producten-prijslijst'!C61 -> 0 | D64: ='>>Producten-prijslijst'!D61 -> 0 | E64: 0
A65: ='>>Producten-prijslijst'!B62 -> Zelf invullen | C65: ='>>Producten-prijslijst'!C62 -> 0 | D65: ='>>Producten-prijslijst'!D62 -> 0 | E65: 0
A66: ='>>Producten-prijslijst'!B63 -> Zelf invullen | C66: ='>>Producten-prijslijst'!C63 -> 0 | D66: ='>>Producten-prijslijst'!D63 -> 0 | E66: 0
A67: ='>>Producten-prijslijst'!B64 -> Zelf invullen | C67: ='>>Producten-prijslijst'!C64 -> 0 | D67: ='>>Producten-prijslijst'!D64 -> 0 | E67: 0
A68: Subtotaal: | E68: =SUM(E57:E67) -> 22.735
A69: Vis
A70: ='>>Producten-prijslijst'!B66 -> Gerookte zalm | B70: 1 | C70: ='>>Producten-prijslijst'!C66 -> kg | D70: ='>>Producten-prijslijst'!D66 -> 22.83 | E70: =B70*D70 -> 22.83 | F70: =E80/$E$162 -> 0.2711948082
A71: ='>>Producten-prijslijst'!B67 -> Gerookte heilbot | B71: 1 | C71: ='>>Producten-prijslijst'!C67 -> kg | D71: ='>>Producten-prijslijst'!D67 -> 31.78 | E71: =B71*D71 -> 31.78
A72: ='>>Producten-prijslijst'!B68 -> Maatjes | B72: 1 | C72: ='>>Producten-prijslijst'!C68 -> kg | D72: ='>>Producten-prijslijst'!D68 -> 21.87 | E72: 21.87
A73: ='>>Producten-prijslijst'!B69 -> Garnalen | B73: 1 | C73: ='>>Producten-prijslijst'!C69 -> kg | D73: ='>>Producten-prijslijst'!D69 -> 40 | E73: 40
A74: ='>>Producten-prijslijst'!B70 -> Wakame salade | B74: 1 | C74: ='>>Producten-prijslijst'!C70 -> kg | D74: ='>>Producten-prijslijst'!D70 -> 18 | E74: 18
A75: ='>>Producten-prijslijst'!B71 -> Zelf invullen | C75: ='>>Producten-prijslijst'!C71 -> 0 | D75: ='>>Producten-prijslijst'!D71 -> 0 | E75: 0
A76: ='>>Producten-prijslijst'!B72 -> Zelf invullen | C76: ='>>Producten-prijslijst'!C72 -> 0 | D76: ='>>Producten-prijslijst'!D72 -> 0 | E76: 0
A77: ='>>Producten-prijslijst'!B73 -> Zelf invullen | C77: ='>>Producten-prijslijst'!C73 -> 0 | D77: ='>>Producten-prijslijst'!D73 -> 0 | E77: 0
A78: ='>>Producten-prijslijst'!B74 -> Zelf invullen | C78: ='>>Producten-prijslijst'!C74 -> 0 | D78: ='>>Producten-prijslijst'!D74 -> 0 | E78: 0
A79: ='>>Producten-prijslijst'!B75 -> Zelf invullen | C79: ='>>Producten-prijslijst'!C75 -> 0 | D79: ='>>Producten-prijslijst'!D75 -> 0 | E79: 0
A80: Subtotaal: | E80: =SUM(E70:E79) -> 134.48
A81: Charcuterie
A82: ='>>Producten-prijslijst'!B77 -> Pancetta | B82: 1 | C82: ='>>Producten-prijslijst'!C77 -> kg | D82: ='>>Producten-prijslijst'!D77 -> 10.27 | E82: =B82*D82 -> 10.27 | F82: =E93/$E$162 -> 0.1788135309
A83: ='>>Producten-prijslijst'!B78 -> Gerookte kalkoen | B83: 1 | C83: ='>>Producten-prijslijst'!C78 -> kg | D83: ='>>Producten-prijslijst'!D78 -> 9.27 | E83: =B83*D83 -> 9.27
A84: ='>>Producten-prijslijst'!B79 -> Gekookte ham | B84: 1 | C84: ='>>Producten-prijslijst'!C79 -> kg | D84: ='>>Producten-prijslijst'!D79 -> 11.5 | E84: 11.5
A85: ='>>Producten-prijslijst'!B80 -> Ganda ham | B85: 1 | C85: ='>>Producten-prijslijst'!C80 -> kg | D85: ='>>Producten-prijslijst'!D80 -> 36 | E85: 36
A86: ='>>Producten-prijslijst'!B81 -> Salami | B86: 1 | C86: ='>>Producten-prijslijst'!C81 -> kg | D86: ='>>Producten-prijslijst'!D81 -> 11.51 | E86: 11.51
A87: ='>>Producten-prijslijst'!B82 -> Zwarte pens | B87: 1 | C87: ='>>Producten-prijslijst'!C82 -> kg | D87: ='>>Producten-prijslijst'!D82 -> 10.12 | E87: 10.12
A88: ='>>Producten-prijslijst'!B83 -> Zelf invullen | C88: ='>>Producten-prijslijst'!C83 -> 0 | D88: ='>>Producten-prijslijst'!D83 -> 0 | E88: 0
A89: ='>>Producten-prijslijst'!B84 -> Zelf invullen | C89: ='>>Producten-prijslijst'!C84 -> 0 | D89: ='>>Producten-prijslijst'!D84 -> 0 | E89: 0
A90: ='>>Producten-prijslijst'!B85 -> Zelf invullen | C90: ='>>Producten-prijslijst'!C85 -> 0 | D90: ='>>Producten-prijslijst'!D85 -> 0 | E90: 0
A91: ='>>Producten-prijslijst'!B86 -> Zelf invullen | C91: ='>>Producten-prijslijst'!C86 -> 0 | D91: ='>>Producten-prijslijst'!D86 -> 0 | E91: 0
A92: ='>>Producten-prijslijst'!B87 -> Zelf invullen | C92: ='>>Producten-prijslijst'!C87 -> 0 | D92: ='>>Producten-prijslijst'!D87 -> 0 | E92: 0
A93: Subtotaal: | E93: =SUM(E82:E92) -> 88.67
A94: Zoet
A95: ='>>Producten-prijslijst'!B89 -> Nutella (15gr) | B95: =120*0.2 -> 24 | C95: ='>>Producten-prijslijst'!C89 -> st | D95: ='>>Producten-prijslijst'!D89 -> 0.16 | E95: =B95*D95 -> 3.84 | F95: =E107/$E$162 -> 0.0385980713
A96: ='>>Producten-prijslijst'!B90 -> Confituur (15gr) | B96: =100*0.2 -> 20 | C96: ='>>Producten-prijslijst'!C90 -> st | D96: ='>>Producten-prijslijst'!D90 -> 0.17 | E96: =B96*D96 -> 3.4
A97: ='>>Producten-prijslijst'!B91 -> Smeerkaas (17gr) | B97: =80*0.2 -> 16 | C97: ='>>Producten-prijslijst'!C91 -> st | D97: ='>>Producten-prijslijst'!D91 -> 0.21 | E97: 3.36
A98: ='>>Producten-prijslijst'!B92 -> Pannenkoeken | C98: st | D98: ='>>Producten-prijslijst'!D92 -> 2.26 | E98: 0
A99: ='>>Producten-prijslijst'!B93 -> Chocolade muizen (20gr) | B99: =120*0.2 -> 24 | C99: ='>>Producten-prijslijst'!C92 -> st | D99: ='>>Producten-prijslijst'!D93 -> 0.31 | E99: 7.44
A100: ='>>Producten-prijslijst'!B94 -> Zoetjes | B100: =500*0.05 -> 25 | C100: ='>>Producten-prijslijst'!C94 -> st | D100: ='>>Producten-prijslijst'!D94 -> 0.02 | E100: 0.5
A101: ='>>Producten-prijslijst'!B95 -> Suiker koffie (5gr) | B101: =600*0.1 -> 60 | C101: ='>>Producten-prijslijst'!C95 -> st | D101: ='>>Producten-prijslijst'!D95 -> 0.01 | E101: 0.6
A102: ='>>Producten-prijslijst'!B96 -> Zelf invullen | C102: ='>>Producten-prijslijst'!C96 -> 0 | D102: ='>>Producten-prijslijst'!D96 -> 0 | E102: 0
A103: ='>>Producten-prijslijst'!B97 -> Zelf invullen | C103: ='>>Producten-prijslijst'!C97 -> 0 | D103: ='>>Producten-prijslijst'!D97 -> 0 | E103: 0
A104: ='>>Producten-prijslijst'!B98 -> Zelf invullen | C104: ='>>Producten-prijslijst'!C98 -> 0 | D104: ='>>Producten-prijslijst'!D98 -> 0 | E104: 0
A105: ='>>Producten-prijslijst'!B99 -> Zelf invullen | C105: ='>>Producten-prijslijst'!C99 -> 0 | D105: ='>>Producten-prijslijst'!D99 -> 0 | E105: 0
A106: ='>>Producten-prijslijst'!B100 -> Zelf invullen | C106: ='>>Producten-prijslijst'!C100 -> 0 | D106: ='>>Producten-prijslijst'!D100 -> 0 | E106: 0
A107: Subtotaal: | E107: =SUM(E95:E106) -> 19.14
A108: Salade en groenten
A109: ='>>Producten-prijslijst'!B102 -> Salade mix | B109: 300 | C109: ='>>Producten-prijslijst'!C102 -> gr | D109: ='>>Producten-prijslijst'!D102 -> 0.01 | E109: =B109*D109 -> 3 | F109: =E118/$E$162 -> 0.01049952237
A110: ='>>Producten-prijslijst'!B103 -> Sjalot | B110: 0.05 | C110: ='>>Producten-prijslijst'!C103 -> kg | D110: ='>>Producten-prijslijst'!D103 -> 2.07 | E110: =B110*D110 -> 0.1035
A111: ='>>Producten-prijslijst'!B104 -> Kerstomaat | B111: 0.1 | C111: ='>>Producten-prijslijst'!C104 -> kg | D111: ='>>Producten-prijslijst'!D104 -> 1.03 | E111: 0.103
A112: ='>>Producten-prijslijst'!B105 -> Mais | B112: 200 | C112: ='>>Producten-prijslijst'!C105 -> gr | D112: ='>>Producten-prijslijst'!D105 -> 0.01 | E112: 2
A113: ='>>Producten-prijslijst'!B106 -> Zelf invullen | C113: ='>>Producten-prijslijst'!C106 -> 0 | D113: ='>>Producten-prijslijst'!D106 -> 0 | E113: 0
A114: ='>>Producten-prijslijst'!B107 -> Zelf invullen | C114: ='>>Producten-prijslijst'!C107 -> 0 | D114: ='>>Producten-prijslijst'!D107 -> 0 | E114: 0
A115: ='>>Producten-prijslijst'!B108 -> Zelf invullen | C115: ='>>Producten-prijslijst'!C108 -> 0 | D115: ='>>Producten-prijslijst'!D108 -> 0 | E115: 0
A116: ='>>Producten-prijslijst'!B109 -> Zelf invullen | C116: ='>>Producten-prijslijst'!C109 -> 0 | D116: ='>>Producten-prijslijst'!D109 -> 0 | E116: 0
A117: ='>>Producten-prijslijst'!B110 -> Zelf invullen | C117: ='>>Producten-prijslijst'!C110 -> 0 | D117: ='>>Producten-prijslijst'!D110 -> 0 | E117: 0
A118: Subtotaal: | E118: =SUM(E109:E117) -> 5.2065
A119: Garnituren
A120: ='>>Producten-prijslijst'!B112 -> Croutons | B120: 0.15 | C120: ='>>Producten-prijslijst'!C112 -> kg | D120: ='>>Producten-prijslijst'!D112 -> 5.18 | E120: =B120*D120 -> 0.777 | F120: =E134/$E$162 -> 0.02942750028
A121: ='>>Producten-prijslijst'!B113 -> Notenmix | B121: 0.1 | C121: ='>>Producten-prijslijst'!C113 -> kg | D121: ='>>Producten-prijslijst'!D113 -> 23 | E121: =B121*D121 -> 2.3
A122: ='>>Producten-prijslijst'!B114 -> Augurken | B122: 0.05 | C122: ='>>Producten-prijslijst'!C114 -> kg | D122: ='>>Producten-prijslijst'!D114 -> 3.36 | E122: 0.168
A123: ='>>Producten-prijslijst'!B115 -> Mini uitjes op azijn | C123: ='>>Producten-prijslijst'!C115 -> kg | D123: ='>>Producten-prijslijst'!D115 -> 1.81 | E123: 0
A124: ='>>Producten-prijslijst'!B116 -> Kappertjes | C124: ='>>Producten-prijslijst'!C116 -> lt | D124: ='>>Producten-prijslijst'!D116 -> 14.67 | E124: 0
A125: ='>>Producten-prijslijst'!B117 -> Gehakte peterselie | B125: 0.05 | C125: ='>>Producten-prijslijst'!C117 -> kg | D125: ='>>Producten-prijslijst'!D117 -> 18.5 | E125: 0.925
A126: ='>>Producten-prijslijst'!B118 -> Citroen in kwartjes | B126: 0.05 | C126: ='>>Producten-prijslijst'!C118 -> st | D126: ='>>Producten-prijslijst'!D118 -> 0.45 | E126: 0.0225
A127: ='>>Producten-prijslijst'!B119 -> Boter (8gr) | B127: 80 | C127: ='>>Producten-prijslijst'!C119 -> st | D127: ='>>Producten-prijslijst'!D119 -> 0.08 | E127: 6.4
A128: ='>>Producten-prijslijst'!B120 -> Margarine (15gr) | B128: 80 | C128: ='>>Producten-prijslijst'!C120 -> st | D128: ='>>Producten-prijslijst'!D120 -> 0.05 | E128: 4
A129: ='>>Producten-prijslijst'!B121 -> Zelf invullen | C129: ='>>Producten-prijslijst'!C121 -> 0 | D129: ='>>Producten-prijslijst'!D121 -> 0 | E129: 0
A130: ='>>Producten-prijslijst'!B122 -> Zelf invullen | C130: ='>>Producten-prijslijst'!C122 -> 0 | D130: ='>>Producten-prijslijst'!D122 -> 0 | E130: 0
A131: ='>>Producten-prijslijst'!B123 -> Zelf invullen | C131: ='>>Producten-prijslijst'!C123 -> 0 | D131: ='>>Producten-prijslijst'!D123 -> 0 | E131: 0
A132: ='>>Producten-prijslijst'!B124 -> Zelf invullen | C132: ='>>Producten-prijslijst'!C124 -> 0 | D132: ='>>Producten-prijslijst'!D124 -> 0 | E132: 0
A133: ='>>Producten-prijslijst'!B125 -> Zelf invullen | C133: ='>>Producten-prijslijst'!C125 -> 0 | D133: ='>>Producten-prijslijst'!D125 -> 0 | E133: 0
A134: Subtotaal: | E134: =SUM(E120:E133) -> 14.5925
A135: Brood
A136: ='>>Producten-prijslijst'!B127 -> Chocolade broodje premium | B136: 30 | C136: ='>>Producten-prijslijst'!C127 -> st | D136: ='>>Producten-prijslijst'!D127 -> 0.7364583333 | E136: =B136*D136 -> 22.09375 | F136: =E161/$E$162 -> 0.2496367561
A137: ='>>Producten-prijslijst'!B128 -> Chocoladebroodje | C137: ='>>Producten-prijslijst'!C128 -> st | D137: ='>>Producten-prijslijst'!D128 -> 0.57625 | E137: =B137*D137 -> 0
A138: ='>>Producten-prijslijst'!B129 -> Golden croissant | B138: 20 | C138: ='>>Producten-prijslijst'!C129 -> st | D138: ='>>Producten-prijslijst'!D129 -> 0.49 | E138: 9.8
A139: ='>>Producten-prijslijst'!B130 -> Croissant recht | C139: ='>>Producten-prijslijst'!C130 -> st | D139: ='>>Producten-prijslijst'!D130 -> 0.49 | E139: 0
A140: ='>>Producten-prijslijst'!B131 -> Premium suisse rond | C140: ='>>Producten-prijslijst'!C131 -> st | D140: ='>>Producten-prijslijst'!D131 -> 0.8961111111 | E140: 0
A141: ='>>Producten-prijslijst'!B132 -> Cinnamon scandi swirl | C141: ='>>Producten-prijslijst'!C132 -> st | D141: ='>>Producten-prijslijst'!D132 -> 0.99 | E141: 0
A142: ='>>Producten-prijslijst'!B133 -> Mini assortiment viennoiserie | B142: 20 | C142: ='>>Producten-prijslijst'!C133 -> st | D142: ='>>Producten-prijslijst'!D133 -> 0.1129555556 | E142: 2.259111111
A143: ='>>Producten-prijslijst'!B134 -> Mini danish selection | B143: 20 | C143: ='>>Producten-prijslijst'!C134 -> st | D143: ='>>Producten-prijslijst'!D134 -> 0.5007142857 | E143: 10.01428571
A144: ='>>Producten-prijslijst'!B135 -> Mini croissant gevuld | B144: 20 | C144: ='>>Producten-prijslijst'!C135 -> st | D144: ='>>Producten-prijslijst'!D135 -> 0.6538888889 | E144: 13.07777778
A145: ='>>Producten-prijslijst'!B136 -> Assortiment resto | B145: 25 | C145: ='>>Producten-prijslijst'!C136 -> st | D145: ='>>Producten-prijslijst'!D136 -> 0.2517 | E145: 6.2925
A146: ='>>Producten-prijslijst'!B137 -> Assortiment Prestige | B146: 25 | C146: ='>>Producten-prijslijst'!C137 -> st | D146: ='>>Producten-prijslijst'!D137 -> 0.3383 | E146: 8.4575
A147: ='>>Producten-prijslijst'!B138 -> Midi rozenbroodje volkoren | B147: 25 | C147: ='>>Producten-prijslijst'!C138 -> st | D147: ='>>Producten-prijslijst'!D138 -> 0.334375 | E147: 8.359375
A148: ='>>Producten-prijslijst'!B139 -> Molenaarsbrood donker | B148: 2 | C148: ='>>Producten-prijslijst'!C139 -> st | D148: ='>>Producten-prijslijst'!D139 -> 4.22875 | E148: 8.4575
A149: ='>>Producten-prijslijst'!B140 -> Molenaarsbrood meergranen | B149: 2 | C149: ='>>Producten-prijslijst'!C140 -> st | D149: ='>>Producten-prijslijst'!D140 -> 4.22875 | E149: 8.4575
A150: ='>>Producten-prijslijst'!B141 -> Molenaarsbrood wit | B150: 2 | C150: ='>>Producten-prijslijst'!C141 -> st | D150: ='>>Producten-prijslijst'!D141 -> 4.22875 | E150: 8.4575
A151: ='>>Producten-prijslijst'!B142 -> Toast brood wit | B151: 1 | C151: ='>>Producten-prijslijst'!C142 -> st | D151: ='>>Producten-prijslijst'!D142 -> 3.2375 | E151: 3.2375
A152: ='>>Producten-prijslijst'!B143 -> Toastbrood premium country | B152: 1 | C152: ='>>Producten-prijslijst'!C143 -> st | D152: ='>>Producten-prijslijst'!D143 -> 4.51 | E152: 4.51
A153: ='>>Producten-prijslijst'!B144 -> PLUS Stokbrood wit bebloemd | B153: 1 | C153: ='>>Producten-prijslijst'!C144 -> st | D153: ='>>Producten-prijslijst'!D144 -> 1.098 | E153: 1.098
A154: ='>>Producten-prijslijst'!B145 -> PLUS fitness stokbrood | B154: 2 | C154: ='>>Producten-prijslijst'!C145 -> st | D154: ='>>Producten-prijslijst'!D145 -> 1.23 | E154: 2.46
A155: ='>>Producten-prijslijst'!B146 -> Glutenvrij broodje wit | B155: 6 | C155: ='>>Producten-prijslijst'!C146 -> st | D155: ='>>Producten-prijslijst'!D146 -> 1.12625 | E155: =B155*D155 -> 6.7575
A156: ='>>Producten-prijslijst'!B147 -> Zelf invullen | C156: ='>>Producten-prijslijst'!C147 -> 0 | D156: ='>>Producten-prijslijst'!D147 -> 0 | E156: =B156*D156 -> 0
A157: ='>>Producten-prijslijst'!B148 -> Zelf invullen | C157: ='>>Producten-prijslijst'!C148 -> 0 | D157: ='>>Producten-prijslijst'!D148 -> 0 | E157: 0
A158: ='>>Producten-prijslijst'!B149 -> Zelf invullen | C158: ='>>Producten-prijslijst'!C149 -> 0 | D158: ='>>Producten-prijslijst'!D149 -> 0 | E158: 0
A159: ='>>Producten-prijslijst'!B150 -> Zelf invullen | C159: ='>>Producten-prijslijst'!C150 -> 0 | D159: ='>>Producten-prijslijst'!D150 -> 0 | E159: 0
A160: ='>>Producten-prijslijst'!B151 -> Zelf invullen | C160: ='>>Producten-prijslijst'!C151 -> 0 | D160: ='>>Producten-prijslijst'!D151 -> 0 | E160: 0
A161: Subtotaal: | E161: =SUM(E136:E160) -> 123.7897996
A162: Totaal: | E162: =E20+E41+E55+E68+E80+E93+E107+E118+E134+E161 -> 495.8796996
A163: Totaal aantal gasten: | C163: 100
A164: Kost per persoon: | C164: =E162/C163 -> 4.958796996

Sheet Premium Ontbijtbuffet
A1: PREMIUM ONTBIJTBUFFET
A2: Voorbeeld van een premium hotelontbijt voor speciale gelegenheden, samengesteld door onze chefs. Gebruik dit als inspiratie of pas het aan naar jouw eigen concept.
A3: INGREDIËNTEN | B3: HOEVEELHEID | C3: EENHEID | D3: AANKOOPPRIJS | E3: FOODCOST | F3: FOODCOST % PER CATEGORIE
A4: Drank
A5: ='>>Producten-prijslijst'!B5 -> Koffie | B5: 0.5 | C5: ='>>Producten-prijslijst'!C5 -> kg | D5: ='>>Producten-prijslijst'!D5 -> 15.3 | E5: =B5*D5 -> 7.65 | F5: =E20/$E$162 -> 0.03542825405
A6: ='>>Producten-prijslijst'!B6 -> Thee | B6: 1 | C6: ='>>Producten-prijslijst'!C6 -> st | D6: ='>>Producten-prijslijst'!D6 -> 0.15 | E6: 0.15
A7: ='>>Producten-prijslijst'!B7 -> Plat water | B7: 0.33 | C7: ='>>Producten-prijslijst'!C7 -> lt | D7: ='>>Producten-prijslijst'!D7 -> 0.98 | E7: 0.3234
A8: ='>>Producten-prijslijst'!B8 -> Bruisend water | B8: 0.33 | C8: ='>>Producten-prijslijst'!C8 -> lt | D8: ='>>Producten-prijslijst'!D8 -> 1.1 | E8: 0.363
A9: ='>>Producten-prijslijst'!B9 -> Appelsiensap | B9: 2 | C9: ='>>Producten-prijslijst'!C9 -> lt | D9: ='>>Producten-prijslijst'!D9 -> 3.2 | E9: 6.4
A10: ='>>Producten-prijslijst'!B10 -> Smoothie kiwi (250ml) | B10: 2 | C10: ='>>Producten-prijslijst'!C10 -> st | D10: ='>>Producten-prijslijst'!D10 -> 1.33 | E10: 2.66
A11: ='>>Producten-prijslijst'!B11 -> Smoothie rood fruit (250ml) | B11: 2 | C11: ='>>Producten-prijslijst'!C11 -> st | D11: ='>>Producten-prijslijst'!D11 -> 1.33 | E11: 2.66
A12: ='>>Producten-prijslijst'!B12 -> Appelsap | B12: 2 | C12: ='>>Producten-prijslijst'!C12 -> lt | D12: ='>>Producten-prijslijst'!D12 -> 1.06 | E12: 2.12
A13: ='>>Producten-prijslijst'!B13 -> Tomatensap | B13: 0.5 | C13: ='>>Producten-prijslijst'!C13 -> lt | D13: ='>>Producten-prijslijst'!D13 -> 0.99 | E13: 0.495
A14: ='>>Producten-prijslijst'!B14 -> Chocolademelk | B14: 0.5 | C14: ='>>Producten-prijslijst'!C14 -> lt | D14: ='>>Producten-prijslijst'!D14 -> 1.63 | E14: 0.815
A15: ='>>Producten-prijslijst'!B15 -> Zelf invullen | C15: ='>>Producten-prijslijst'!C15 -> 0 | D15: ='>>Producten-prijslijst'!D15 -> 0 | E15: 0
A16: ='>>Producten-prijslijst'!B16 -> Zelf invullen | C16: ='>>Producten-prijslijst'!C16 -> 0 | D16: ='>>Producten-prijslijst'!D16 -> 0 | E16: 0
A17: ='>>Producten-prijslijst'!B17 -> Zelf invullen | C17: ='>>Producten-prijslijst'!C17 -> 0 | D17: ='>>Producten-prijslijst'!D17 -> 0 | E17: 0
A18: ='>>Producten-prijslijst'!B18 -> Zelf invullen | C18: ='>>Producten-prijslijst'!C18 -> 0 | D18: ='>>Producten-prijslijst'!D18 -> 0 | E18: 0
A19: ='>>Producten-prijslijst'!B19 -> Zelf invullen | C19: ='>>Producten-prijslijst'!C19 -> 0 | D19: ='>>Producten-prijslijst'!D19 -> 0 | E19: 0
A20: Subtotaal: | E20: =SUM(E5:E19) -> 23.6364
A21: Melkproducten
A22: ='>>Producten-prijslijst'!B21 -> Fruit yoghurt (150gr) | B22: 12 | C22: ='>>Producten-prijslijst'!C21 -> st | D22: ='>>Producten-prijslijst'!D21 -> 0.43 | E22: =B22*D22 -> 5.16 | F22: =E41/$E$162 -> 0.08975625346
A23: ='>>Producten-prijslijst'!B22 -> Yoghurt met cereals (100gr) | B23: 10 | C23: ='>>Producten-prijslijst'!C22 -> st | D23: ='>>Producten-prijslijst'!D22 -> 0.55 | E23: =B23*D23 -> 5.5
A24: ='>>Producten-prijslijst'!B23 -> Actimel (80gr) | B24: 2 | C24: ='>>Producten-prijslijst'!C23 -> st | D24: ='>>Producten-prijslijst'!D23 -> 0.75 | E24: 1.5
A25: ='>>Producten-prijslijst'!B24 -> Melk | B25: 0.2 | C25: ='>>Producten-prijslijst'!C24 -> lt | D25: ='>>Producten-prijslijst'!D24 -> 0.72 | E25: =B25*D25 -> 0.144
A26: ='>>Producten-prijslijst'!B25 -> Kaas plakken (20gr) | B26: 0.5 | C26: ='>>Producten-prijslijst'!C25 -> st | D26: ='>>Producten-prijslijst'!D25 -> 0.16 | E26: 0.08
A27: ='>>Producten-prijslijst'!B26 -> Soja melk | B27: 1 | C27: ='>>Producten-prijslijst'!C26 -> lt | D27: ='>>Producten-prijslijst'!D26 -> 3.2 | E27: 3.2
A28: ='>>Producten-prijslijst'!B27 -> Brie | B28: 0.25 | C28: ='>>Producten-prijslijst'!C27 -> kg | D28: ='>>Producten-prijslijst'!D27 -> 18.52 | E28: 4.63
A29: ='>>Producten-prijslijst'!B28 -> Geitenkaas | B29: 0.5 | C29: ='>>Producten-prijslijst'!C28 -> kg | D29: ='>>Producten-prijslijst'!D28 -> 12.4 | E29: 6.2
A30: ='>>Producten-prijslijst'!B29 -> Chimay Blauw | B30: 0.5 | C30: ='>>Producten-prijslijst'!C29 -> kg | D30: ='>>Producten-prijslijst'!D29 -> 53.55 | E30: 26.775
A31: ='>>Producten-prijslijst'!B30 -> Cheddar | B31: 0.5 | C31: ='>>Producten-prijslijst'!C30 -> kg | D31: ='>>Producten-prijslijst'!D30 -> 7.65 | E31: 3.825
A32: ='>>Producten-prijslijst'!B31 -> Maredsous | B32: 0.25 | C32: ='>>Producten-prijslijst'!C31 -> kg | D32: ='>>Producten-prijslijst'!D31 -> 5.91 | E32: 1.4775
A33: ='>>Producten-prijslijst'!B32 -> Kruidenkaas | B33: 0.5 | C33: ='>>Producten-prijslijst'!C32 -> kg | D33: ='>>Producten-prijslijst'!D32 -> 9.68 | E33: 4.84
A34: ='>>Producten-prijslijst'!B33 -> Cottage cheese | B34: 0.25 | C34: ='>>Producten-prijslijst'!C33 -> lt | D34: ='>>Producten-prijslijst'!D33 -> 6.33 | E34: 1.5825
A35: ='>>Producten-prijslijst'!B34 -> Magere melk | B35: 0.2 | C35: ='>>Producten-prijslijst'!C34 -> lt | D35: ='>>Producten-prijslijst'!D34 -> 0.64 | E35: 0.128
A36: ='>>Producten-prijslijst'!B35 -> Zelf invullen | C36: ='>>Producten-prijslijst'!C36 -> 0 | D36: ='>>Producten-prijslijst'!D36 -> 0 | E36: 0
A37: ='>>Producten-prijslijst'!B36 -> Zelf invullen | C37: ='>>Producten-prijslijst'!C37 -> 0 | D37: ='>>Producten-prijslijst'!D37 -> 0 | E37: 0
A38: ='>>Producten-prijslijst'!B37 -> Zelf invullen | C38: ='>>Producten-prijslijst'!C38 -> 0 | D38: ='>>Producten-prijslijst'!D38 -> 0 | E38: 0
A39: ='>>Producten-prijslijst'!B38 -> Zelf invullen | C39: ='>>Producten-prijslijst'!C39 -> 0 | D39: ='>>Producten-prijslijst'!D39 -> 0 | E39: 0
A40: ='>>Producten-prijslijst'!B39 -> Zelf invullen | C40: ='>>Producten-prijslijst'!C40 -> 0 | D40: ='>>Producten-prijslijst'!D40 -> 0 | E40: 0
A41: Subtotaal: | E41: =SUM(E23:E40) -> 59.882
A42: Fruit
A43: ='>>Producten-prijslijst'!B41 -> Kiwi | B43: 5 | C43: ='>>Producten-prijslijst'!C41 -> st | D43: ='>>Producten-prijslijst'!D41 -> 0.55 | E43: =B43*D43 -> 2.75 | F43: =E55/$E$162 -> 0.04023008321
A44: ='>>Producten-prijslijst'!B42 -> Appel | B44: 1 | C44: ='>>Producten-prijslijst'!C42 -> kg | D44: ='>>Producten-prijslijst'!D42 -> 1.9 | E44: =B44*D44 -> 1.9
A45: ='>>Producten-prijslijst'!B43 -> Peer | B45: 1 | C45: ='>>Producten-prijslijst'!C43 -> kg | D45: ='>>Producten-prijslijst'!D43 -> 2.1 | E45: 2.1
A46: ='>>Producten-prijslijst'!B44 -> Appelsien | B46: 1 | C46: ='>>Producten-prijslijst'!C44 -> kg | D46: ='>>Producten-prijslijst'!D44 -> 2.28 | E46: 2.28
A47: ='>>Producten-prijslijst'!B45 -> Druiven | B47: 1 | C47: ='>>Producten-prijslijst'!C45 -> kg | D47: ='>>Producten-prijslijst'!D45 -> 4.42 | E47: 4.42
A48: ='>>Producten-prijslijst'!B46 -> Fruitsalade | B48: 1.5 | C48: ='>>Producten-prijslijst'!C46 -> kg | D48: ='>>Producten-prijslijst'!D46 -> 5.1 | E48: 7.65
A49: ='>>Producten-prijslijst'!B47 -> Banaan | B49: 2 | C49: ='>>Producten-prijslijst'!C47 -> kg | D49: ='>>Producten-prijslijst'!D47 -> 2.87 | E49: 5.74
A50: ='>>Producten-prijslijst'!B48 -> Zelf invullen | C50: ='>>Producten-prijslijst'!C48 -> 0 | D50: ='>>Producten-prijslijst'!D48 -> 0 | E50: 0
A51: ='>>Producten-prijslijst'!B49 -> Zelf invullen | C51: ='>>Producten-prijslijst'!C49 -> 0 | D51: ='>>Producten-prijslijst'!D49 -> 0 | E51: 0
A52: ='>>Producten-prijslijst'!B50 -> Zelf invullen | C52: ='>>Producten-prijslijst'!C50 -> 0 | D52: ='>>Producten-prijslijst'!D50 -> 0 | E52: 0
A53: ='>>Producten-prijslijst'!B51 -> Zelf invullen | C53: ='>>Producten-prijslijst'!C51 -> 0 | D53: ='>>Producten-prijslijst'!D51 -> 0 | E53: 0
A54: ='>>Producten-prijslijst'!B52 -> Zelf invullen | C54: ='>>Producten-prijslijst'!C52 -> 0 | D54: ='>>Producten-prijslijst'!D52 -> 0 | E54: 0
A55: Subtotaal: | E55: =SUM(E43:E54) -> 26.84
A56: Warm buffet
A57: ='>>Producten-prijslijst'!B54 -> Ei | B57: 36 | C57: ='>>Producten-prijslijst'!C54 -> st | D57: ='>>Producten-prijslijst'!D54 -> 0.09 | E57: =B57*D57 -> 3.24 | F57: =E68/$E$162 -> 0.03407715878
A58: ='>>Producten-prijslijst'!B55 -> Spek | B58: 0.5 | C58: ='>>Producten-prijslijst'!C55 -> kg | D58: ='>>Producten-prijslijst'!D55 -> 9.32 | E58: =B58*D58 -> 4.66
A59: ='>>Producten-prijslijst'!B56 -> Mini worstjes | B59: 1 | C59: ='>>Producten-prijslijst'!C56 -> kg | D59: ='>>Producten-prijslijst'!D56 -> 8.4 | E59: 8.4
A60: ='>>Producten-prijslijst'!B57 -> Tomaat | B60: 0.25 | C60: ='>>Producten-prijslijst'!C57 -> kg | D60: ='>>Producten-prijslijst'!D57 -> 2.14 | E60: 0.535
A61: ='>>Producten-prijslijst'!B58 -> Gebakken champignons | B61: 0.5 | C61: ='>>Producten-prijslijst'!C58 -> kg | D61: ='>>Producten-prijslijst'!D58 -> 7.8 | E61: 3.9
A62: ='>>Producten-prijslijst'!B59 -> Aardappelschijfjes | B62: 0.5 | C62: ='>>Producten-prijslijst'!C59 -> kg | D62: ='>>Producten-prijslijst'!D59 -> 4 | E62: 2
A63: ='>>Producten-prijslijst'!B60 -> Zelf invullen | C63: ='>>Producten-prijslijst'!C60 -> 0 | D63: ='>>Producten-prijslijst'!D60 -> 0 | E63: 0
A64: ='>>Producten-prijslijst'!B61 -> Zelf invullen | C64: ='>>Producten-prijslijst'!C61 -> 0 | D64: ='>>Producten-prijslijst'!D61 -> 0 | E64: 0
A65: ='>>Producten-prijslijst'!B62 -> Zelf invullen | C65: ='>>Producten-prijslijst'!C62 -> 0 | D65: ='>>Producten-prijslijst'!D62 -> 0 | E65: 0
A66: ='>>Producten-prijslijst'!B63 -> Zelf invullen | C66: ='>>Producten-prijslijst'!C63 -> 0 | D66: ='>>Producten-prijslijst'!D63 -> 0 | E66: 0
A67: ='>>Producten-prijslijst'!B64 -> Zelf invullen | C67: ='>>Producten-prijslijst'!C64 -> 0 | D67: ='>>Producten-prijslijst'!D64 -> 0 | E67: 0
A68: Subtotaal: | E68: =SUM(E57:E67) -> 22.735
A69: Vis
A70: ='>>Producten-prijslijst'!B66 -> Gerookte zalm | B70: 1 | C70: ='>>Producten-prijslijst'!C66 -> kg | D70: ='>>Producten-prijslijst'!D66 -> 22.83 | E70: =B70*D70 -> 22.83 | F70: =E80/$E$162 -> 0.201570104
A71: ='>>Producten-prijslijst'!B67 -> Gerookte heilbot | B71: 1 | C71: ='>>Producten-prijslijst'!C67 -> kg | D71: ='>>Producten-prijslijst'!D67 -> 31.78 | E71: =B71*D71 -> 31.78
A72: ='>>Producten-prijslijst'!B68 -> Maatjes | B72: 1 | C72: ='>>Producten-prijslijst'!C68 -> kg | D72: ='>>Producten-prijslijst'!D68 -> 21.87 | E72: 21.87
A73: ='>>Producten-prijslijst'!B69 -> Garnalen | B73: 1 | C73: ='>>Producten-prijslijst'!C69 -> kg | D73: ='>>Producten-prijslijst'!D69 -> 40 | E73: 40
A74: ='>>Producten-prijslijst'!B70 -> Wakame salade | B74: 1 | C74: ='>>Producten-prijslijst'!C70 -> kg | D74: ='>>Producten-prijslijst'!D70 -> 18 | E74: 18
A75: ='>>Producten-prijslijst'!B71 -> Zelf invullen | C75: ='>>Producten-prijslijst'!C71 -> 0 | D75: ='>>Producten-prijslijst'!D71 -> 0 | E75: 0
A76: ='>>Producten-prijslijst'!B72 -> Zelf invullen | C76: ='>>Producten-prijslijst'!C72 -> 0 | D76: ='>>Producten-prijslijst'!D72 -> 0 | E76: 0
A77: ='>>Producten-prijslijst'!B73 -> Zelf invullen | C77: ='>>Producten-prijslijst'!C73 -> 0 | D77: ='>>Producten-prijslijst'!D73 -> 0 | E77: 0
A78: ='>>Producten-prijslijst'!B74 -> Zelf invullen | C78: ='>>Producten-prijslijst'!C74 -> 0 | D78: ='>>Producten-prijslijst'!D74 -> 0 | E78: 0
A79: ='>>Producten-prijslijst'!B75 -> Zelf invullen | C79: ='>>Producten-prijslijst'!C75 -> 0 | D79: ='>>Producten-prijslijst'!D75 -> 0 | E79: 0
A80: Subtotaal: | E80: =SUM(E70:E79) -> 134.48
A81: Charcuterie
A82: ='>>Producten-prijslijst'!B77 -> Pancetta | B82: 1 | C82: ='>>Producten-prijslijst'!C77 -> kg | D82: ='>>Producten-prijslijst'!D77 -> 10.27 | E82: =B82*D82 -> 10.27 | F82: =E93/$E$162 -> 0.1329061654
A83: ='>>Producten-prijslijst'!B78 -> Gerookte kalkoen | B83: 1 | C83: ='>>Producten-prijslijst'!C78 -> kg | D83: ='>>Producten-prijslijst'!D78 -> 9.27 | E83: =B83*D83 -> 9.27
A84: ='>>Producten-prijslijst'!B79 -> Gekookte ham | B84: 1 | C84: ='>>Producten-prijslijst'!C79 -> kg | D84: ='>>Producten-prijslijst'!D79 -> 11.5 | E84: 11.5
A85: ='>>Producten-prijslijst'!B80 -> Ganda ham | B85: 1 | C85: ='>>Producten-prijslijst'!C80 -> kg | D85: ='>>Producten-prijslijst'!D80 -> 36 | E85: 36
A86: ='>>Producten-prijslijst'!B81 -> Salami | B86: 1 | C86: ='>>Producten-prijslijst'!C81 -> kg | D86: ='>>Producten-prijslijst'!D81 -> 11.51 | E86: 11.51
A87: ='>>Producten-prijslijst'!B82 -> Zwarte pens | B87: 1 | C87: ='>>Producten-prijslijst'!C82 -> kg | D87: ='>>Producten-prijslijst'!D82 -> 10.12 | E87: 10.12
A88: ='>>Producten-prijslijst'!B83 -> Zelf invullen | C88: ='>>Producten-prijslijst'!C83 -> 0 | D88: ='>>Producten-prijslijst'!D83 -> 0 | E88: 0
A89: ='>>Producten-prijslijst'!B84 -> Zelf invullen | C89: ='>>Producten-prijslijst'!C84 -> 0 | D89: ='>>Producten-prijslijst'!D84 -> 0 | E89: 0
A90: ='>>Producten-prijslijst'!B85 -> Zelf invullen | C90: ='>>Producten-prijslijst'!C85 -> 0 | D90: ='>>Producten-prijslijst'!D85 -> 0 | E90: 0
A91: ='>>Producten-prijslijst'!B86 -> Zelf invullen | C91: ='>>Producten-prijslijst'!C86 -> 0 | D91: ='>>Producten-prijslijst'!D86 -> 0 | E91: 0
A92: ='>>Producten-prijslijst'!B87 -> Zelf invullen | C92: ='>>Producten-prijslijst'!C87 -> 0 | D92: ='>>Producten-prijslijst'!D87 -> 0 | E92: 0
A93: Subtotaal: | E93: =SUM(E82:E92) -> 88.67
A94: Zoet
A95: ='>>Producten-prijslijst'!B89 -> Nutella (15gr) | B95: =120*0.2 -> 24 | C95: ='>>Producten-prijslijst'!C89 -> st | D95: ='>>Producten-prijslijst'!D89 -> 0.16 | E95: =B95*D95 -> 3.84 | F95: =E107/$E$162 -> 0.1811253076
A96: ='>>Producten-prijslijst'!B90 -> Confituur (15gr) | B96: =100*0.2 -> 20 | C96: ='>>Producten-prijslijst'!C90 -> st | D96: ='>>Producten-prijslijst'!D90 -> 0.17 | E96: =B96*D96 -> 3.4
A97: ='>>Producten-prijslijst'!B91 -> Smeerkaas (17gr) | B97: =80*0.2 -> 16 | C97: ='>>Producten-prijslijst'!C91 -> st | D97: ='>>Producten-prijslijst'!D91 -> 0.21 | E97: 3.36
A98: ='>>Producten-prijslijst'!B92 -> Pannenkoeken | B98: =15*3 -> 45 | C98: st | D98: ='>>Producten-prijslijst'!D92 -> 2.26 | E98: 101.7
A99: ='>>Producten-prijslijst'!B93 -> Chocolade muizen (20gr) | B99: =120*0.2 -> 24 | C99: ='>>Producten-prijslijst'!C92 -> st | D99: ='>>Producten-prijslijst'!D93 -> 0.31 | E99: 7.44
A100: ='>>Producten-prijslijst'!B94 -> Zoetjes | B100: =500*0.05 -> 25 | C100: ='>>Producten-prijslijst'!C94 -> st | D100: ='>>Producten-prijslijst'!D94 -> 0.02 | E100: 0.5
A101: ='>>Producten-prijslijst'!B95 -> Suiker koffie (5gr) | B101: =600*0.1 -> 60 | C101: ='>>Producten-prijslijst'!C95 -> st | D101: ='>>Producten-prijslijst'!D95 -> 0.01 | E101: 0.6
A102: ='>>Producten-prijslijst'!B96 -> Zelf invullen | C102: ='>>Producten-prijslijst'!C96 -> 0 | D102: ='>>Producten-prijslijst'!D96 -> 0 | E102: 0
A103: ='>>Producten-prijslijst'!B97 -> Zelf invullen | C103: ='>>Producten-prijslijst'!C97 -> 0 | D103: ='>>Producten-prijslijst'!D97 -> 0 | E103: 0
A104: ='>>Producten-prijslijst'!B98 -> Zelf invullen | C104: ='>>Producten-prijslijst'!C98 -> 0 | D104: ='>>Producten-prijslijst'!D98 -> 0 | E104: 0
A105: ='>>Producten-prijslijst'!B99 -> Zelf invullen | C105: ='>>Producten-prijslijst'!C99 -> 0 | D105: ='>>Producten-prijslijst'!D99 -> 0 | E105: 0
A106: ='>>Producten-prijslijst'!B100 -> Zelf invullen | C106: ='>>Producten-prijslijst'!C100 -> 0 | D106: ='>>Producten-prijslijst'!D100 -> 0 | E106: 0
A107: Subtotaal: | E107: =SUM(E95:E106) -> 120.84
A108: Salade en groenten
A109: ='>>Producten-prijslijst'!B102 -> Salade mix | B109: 300 | C109: ='>>Producten-prijslijst'!C102 -> gr | D109: ='>>Producten-prijslijst'!D102 -> 0.01 | E109: =B109*D109 -> 3 | F109: =E118/$E$162 -> 0.007803946655
A110: ='>>Producten-prijslijst'!B103 -> Sjalot | B110: 0.05 | C110: ='>>Producten-prijslijst'!C103 -> kg | D110: ='>>Producten-prijslijst'!D103 -> 2.07 | E110: =B110*D110 -> 0.1035
A111: ='>>Producten-prijslijst'!B104 -> Kerstomaat | B111: 0.1 | C111: ='>>Producten-prijslijst'!C104 -> kg | D111: ='>>Producten-prijslijst'!D104 -> 1.03 | E111: 0.103
A112: ='>>Producten-prijslijst'!B105 -> Mais | B112: 200 | C112: ='>>Producten-prijslijst'!C105 -> gr | D112: ='>>Producten-prijslijst'!D105 -> 0.01 | E112: 2
A113: ='>>Producten-prijslijst'!B106 -> Zelf invullen | C113: ='>>Producten-prijslijst'!C106 -> 0 | D113: ='>>Producten-prijslijst'!D106 -> 0 | E113: 0
A114: ='>>Producten-prijslijst'!B107 -> Zelf invullen | C114: ='>>Producten-prijslijst'!C107 -> 0 | D114: ='>>Producten-prijslijst'!D107 -> 0 | E114: 0
A115: ='>>Producten-prijslijst'!B108 -> Zelf invullen | C115: ='>>Producten-prijslijst'!C108 -> 0 | D115: ='>>Producten-prijslijst'!D108 -> 0 | E115: 0
A116: ='>>Producten-prijslijst'!B109 -> Zelf invullen | C116: ='>>Producten-prijslijst'!C109 -> 0 | D116: ='>>Producten-prijslijst'!D109 -> 0 | E116: 0
A117: ='>>Producten-prijslijst'!B110 -> Zelf invullen | C117: ='>>Producten-prijslijst'!C110 -> 0 | D117: ='>>Producten-prijslijst'!D110 -> 0 | E117: 0
A118: Subtotaal: | E118: =SUM(E109:E117) -> 5.2065
A119: Garnituren
A120: ='>>Producten-prijslijst'!B112 -> Croutons | B120: 0.15 | C120: ='>>Producten-prijslijst'!C112 -> kg | D120: ='>>Producten-prijslijst'!D112 -> 5.18 | E120: =B120*D120 -> 0.777 | F120: =E134/$E$162 -> 0.02305330659
A121: ='>>Producten-prijslijst'!B113 -> Notenmix | B121: 0.1 | C121: ='>>Producten-prijslijst'!C113 -> kg | D121: ='>>Producten-prijslijst'!D113 -> 23 | E121: =B121*D121 -> 2.3
A122: ='>>Producten-prijslijst'!B114 -> Augurken | B122: 0.05 | C122: ='>>Producten-prijslijst'!C114 -> kg | D122: ='>>Producten-prijslijst'!D114 -> 3.36 | E122: 0.168
A123: ='>>Producten-prijslijst'!B115 -> Mini uitjes op azijn | B123: 0.03 | C123: ='>>Producten-prijslijst'!C115 -> kg | D123: ='>>Producten-prijslijst'!D115 -> 1.81 | E123: 0.0543
A124: ='>>Producten-prijslijst'!B116 -> Kappertjes | B124: 0.05 | C124: ='>>Producten-prijslijst'!C116 -> lt | D124: ='>>Producten-prijslijst'!D116 -> 14.67 | E124: 0.7335
A125: ='>>Producten-prijslijst'!B117 -> Gehakte peterselie | B125: 0.05 | C125: ='>>Producten-prijslijst'!C117 -> kg | D125: ='>>Producten-prijslijst'!D117 -> 18.5 | E125: 0.925
A126: ='>>Producten-prijslijst'!B118 -> Citroen in kwartjes | B126: 0.05 | C126: ='>>Producten-prijslijst'!C118 -> st | D126: ='>>Producten-prijslijst'!D118 -> 0.45 | E126: 0.0225
A127: ='>>Producten-prijslijst'!B119 -> Boter (8gr) | B127: 80 | C127: ='>>Producten-prijslijst'!C119 -> st | D127: ='>>Producten-prijslijst'!D119 -> 0.08 | E127: 6.4
A128: ='>>Producten-prijslijst'!B120 -> Margarine (15gr) | B128: 80 | C128: ='>>Producten-prijslijst'!C120 -> st | D128: ='>>Producten-prijslijst'!D120 -> 0.05 | E128: 4
A129: ='>>Producten-prijslijst'!B121 -> Zelf invullen | C129: ='>>Producten-prijslijst'!C121 -> 0 | D129: ='>>Producten-prijslijst'!D121 -> 0 | E129: 0
A130: ='>>Producten-prijslijst'!B122 -> Zelf invullen | C130: ='>>Producten-prijslijst'!C122 -> 0 | D130: ='>>Producten-prijslijst'!D122 -> 0 | E130: 0
A131: ='>>Producten-prijslijst'!B123 -> Zelf invullen | C131: ='>>Producten-prijslijst'!C123 -> 0 | D131: ='>>Producten-prijslijst'!D123 -> 0 | E131: 0
A132: ='>>Producten-prijslijst'!B124 -> Zelf invullen | C132: ='>>Producten-prijslijst'!C124 -> 0 | D132: ='>>Producten-prijslijst'!D124 -> 0 | E132: 0
A133: ='>>Producten-prijslijst'!B125 -> Zelf invullen | C133: ='>>Producten-prijslijst'!C125 -> 0 | D133: ='>>Producten-prijslijst'!D125 -> 0 | E133: 0
A134: Subtotaal: | E134: =SUM(E120:E133) -> 15.3803
A135: Brood
A136: ='>>Producten-prijslijst'!B127 -> Chocolade broodje premium | B136: 30 | C136: ='>>Producten-prijslijst'!C127 -> st | D136: ='>>Producten-prijslijst'!D127 -> 0.7364583333 | E136: =B136*D136 -> 22.09375 | F136: =E161/$E$162 -> 0.2540494204
A137: ='>>Producten-prijslijst'!B128 -> Chocoladebroodje | C137: ='>>Producten-prijslijst'!C128 -> st | D137: ='>>Producten-prijslijst'!D128 -> 0.57625 | E137: =B137*D137 -> 0
A138: ='>>Producten-prijslijst'!B129 -> Golden croissant | B138: 20 | C138: ='>>Producten-prijslijst'!C129 -> st | D138: ='>>Producten-prijslijst'!D129 -> 0.49 | E138: 9.8
A139: ='>>Producten-prijslijst'!B130 -> Croissant recht | C139: ='>>Producten-prijslijst'!C130 -> st | D139: ='>>Producten-prijslijst'!D130 -> 0.49 | E139: 0
A140: ='>>Producten-prijslijst'!B131 -> Premium suisse rond | B140: 20 | C140: ='>>Producten-prijslijst'!C131 -> st | D140: ='>>Producten-prijslijst'!D131 -> 0.8961111111 | E140: 17.92222222
A141: ='>>Producten-prijslijst'!B132 -> Cinnamon scandi swirl | B141: 15 | C141: ='>>Producten-prijslijst'!C132 -> st | D141: ='>>Producten-prijslijst'!D132 -> 0.99 | E141: 14.85
A142: ='>>Producten-prijslijst'!B133 -> Mini assortiment viennoiserie | B142: 15 | C142: ='>>Producten-prijslijst'!C133 -> st | D142: ='>>Producten-prijslijst'!D133 -> 0.1129555556 | E142: 1.694333333
A143: ='>>Producten-prijslijst'!B134 -> Mini danish selection | B143: 15 | C143: ='>>Producten-prijslijst'!C134 -> st | D143: ='>>Producten-prijslijst'!D134 -> 0.5007142857 | E143: 7.510714286
A144: ='>>Producten-prijslijst'!B135 -> Mini croissant gevuld | B144: 15 | C144: ='>>Producten-prijslijst'!C135 -> st | D144: ='>>Producten-prijslijst'!D135 -> 0.6538888889 | E144: 9.808333333
A145: ='>>Producten-prijslijst'!B136 -> Assortiment resto | B145: 30 | C145: ='>>Producten-prijslijst'!C136 -> st | D145: ='>>Producten-prijslijst'!D136 -> 0.2517 | E145: 7.551
A146: ='>>Producten-prijslijst'!B137 -> Assortiment Prestige | B146: 30 | C146: ='>>Producten-prijslijst'!C137 -> st | D146: ='>>Producten-prijslijst'!D137 -> 0.3383 | E146: 10.149
A147: ='>>Producten-prijslijst'!B138 -> Midi rozenbroodje volkoren | B147: 25 | C147: ='>>Producten-prijslijst'!C138 -> st | D147: ='>>Producten-prijslijst'!D138 -> 0.334375 | E147: 8.359375
A148: ='>>Producten-prijslijst'!B139 -> Molenaarsbrood donker | B148: 2 | C148: ='>>Producten-prijslijst'!C139 -> st | D148: ='>>Producten-prijslijst'!D139 -> 4.22875 | E148: 8.4575
A149: ='>>Producten-prijslijst'!B140 -> Molenaarsbrood meergranen | B149: 3 | C149: ='>>Producten-prijslijst'!C140 -> st | D149: ='>>Producten-prijslijst'!D140 -> 4.22875 | E149: 12.68625
A150: ='>>Producten-prijslijst'!B141 -> Molenaarsbrood wit | B150: 3 | C150: ='>>Producten-prijslijst'!C141 -> st | D150: ='>>Producten-prijslijst'!D141 -> 4.22875 | E150: 12.68625
A151: ='>>Producten-prijslijst'!B142 -> Toast brood wit | B151: 1 | C151: ='>>Producten-prijslijst'!C142 -> st | D151: ='>>Producten-prijslijst'!D142 -> 3.2375 | E151: 3.2375
A152: ='>>Producten-prijslijst'!B143 -> Toastbrood premium country | B152: 2 | C152: ='>>Producten-prijslijst'!C143 -> st | D152: ='>>Producten-prijslijst'!D143 -> 4.51 | E152: 9.02
A153: ='>>Producten-prijslijst'!B144 -> PLUS Stokbrood wit bebloemd | B153: 2 | C153: ='>>Producten-prijslijst'!C144 -> st | D153: ='>>Producten-prijslijst'!D144 -> 1.098 | E153: 2.196
A154: ='>>Producten-prijslijst'!B145 -> PLUS fitness stokbrood | B154: 2 | C154: ='>>Producten-prijslijst'!C145 -> st | D154: ='>>Producten-prijslijst'!D145 -> 1.23 | E154: 2.46
A155: ='>>Producten-prijslijst'!B146 -> Glutenvrij broodje wit | B155: 8 | C155: ='>>Producten-prijslijst'!C146 -> st | D155: ='>>Producten-prijslijst'!D146 -> 1.12625 | E155: 9.01
A156: ='>>Producten-prijslijst'!B147 -> Zelf invullen | C156: ='>>Producten-prijslijst'!C147 -> 0 | D156: ='>>Producten-prijslijst'!D147 -> 0 | E156: 0
A157: ='>>Producten-prijslijst'!B148 -> Zelf invullen | C157: ='>>Producten-prijslijst'!C148 -> 0 | D157: ='>>Producten-prijslijst'!D148 -> 0 | E157: 0
A158: ='>>Producten-prijslijst'!B149 -> Zelf invullen | C158: ='>>Producten-prijslijst'!C149 -> 0 | D158: ='>>Producten-prijslijst'!D149 -> 0 | E158: 0
A159: ='>>Producten-prijslijst'!B150 -> Zelf invullen | C159: ='>>Producten-prijslijst'!C150 -> 0 | D159: ='>>Producten-prijslijst'!D150 -> 0 | E159: 0
A160: ='>>Producten-prijslijst'!B151 -> Zelf invullen | C160: ='>>Producten-prijslijst'!C151 -> 0 | D160: ='>>Producten-prijslijst'!D151 -> 0 | E160: 0
A161: Subtotaal: | E161: =SUM(E136:E160) -> 169.4922282
A162: Totaal: | E162: =E20+E41+E55+E68+E80+E93+E107+E118+E134+E161 -> 667.1624282
A163: Totaal aantal gasten: | C163: 100
A164: Kost per persoon: | C164: =E162/C163 -> 6.671624282
